Workbook

Sheet Skupiny (hidden)
A2: Číslo skupiny | B2: Ukazovatele zoradené v bunke | C2: Počet | D2: Cena
A3: 1 | B3: =E3&F3&G3&H3&I3&J3&K3&L3&M3&N3&O3&P3&Q3&R3&S3&T3&U3&V3&W3&X3&Y3&Z3&AA3&AB3&AC3&AD3&AE3&AF3 -> RL-105, NL-105, pH, CHSK-Cr, PAL-A, NEL-IČ, BSK5(ATM), EL-IČ, | C3: =COUNTA(E3:AF3) -> 8 | D3: =Cenník!C35 -> 113.52 | E3: RL-105, | F3: NL-105, | G3: pH, | H3: CHSK-Cr, | I3: PAL-A, | J3: NEL-IČ, | K3: BSK5(ATM), | L3: EL-IČ,
A4: 2 | B4: =E4&F4&G4&H4&I4&J4&K4&L4&M4&N4&O4&P4&Q4&R4&S4&T4&U4&V4&W4&X4&Y4&Z4&AA4&AB4&AC4&AD4&AE4&AF4 -> RL-105, NL-105, pH, CHSK-Cr, PAL-A, BSK5(ATM), EL-IČ, | C4: =COUNTA(E4:AF4) -> 7 | D4: =Cenník!E35 -> 70.37 | E4: RL-105, | F4: NL-105, | G4: pH, | H4: CHSK-Cr, | I4: PAL-A, | K4: BSK5(ATM), | L4: EL-IČ,
A5: 3 | B5: RL-105, NL-105, pH, CHSK-Cr, PAL-A, NEL-IČ, BSK5(ATM), | C5: 7 | D5: =Cenník!G35 -> 77.01 | E5: RL-105, | F5: NL-105, | G5: pH, | H5: CHSK-Cr, | I5: PAL-A, | J5: NEL-IČ, | K5: BSK5(ATM),
A6: 4 | B6: RL-105, NL-105, pH, CHSK-Cr, PAL-A, NEL-IČ, | C6: 6 | D6: =Cenník!I35 -> 70.37 | E6: RL-105, | F6: NL-105, | G6: pH, | H6: CHSK-Cr, | I6: PAL-A, | J6: NEL-IČ,
A7: 5 | B7: RL-105, NL-105, pH, CHSK-Cr, NEL-IČ, | C7: 5 | D7: =Cenník!K35 -> 62.07 | E7: RL-105, | F7: NL-105, | G7: pH, | H7: CHSK-Cr, | J7: NEL-IČ,
A8: 6 | B8: RL-105, NL-105, pH, CHSK-Cr, PAL-A, BSK5(ATM), EL-IČ, Pc, Nc, | C8: 9 | D8: =Cenník!M35 -> 91.95 | E8: RL-105, | F8: NL-105, | G8: pH, | H8: CHSK-Cr, | I8: PAL-A, | K8: BSK5(ATM), | L8: EL-IČ, | M8: Pc, | N8: Nc,
A9: 7 | B9: RL-105, NL-105, pH, CHSK-Cr, PAL-A, NEL-IČ, BSK5(ATM), EL-IČ, Pc, | C9: 9 | D9: =Cenník!O35 -> 121.82 | E9: RL-105, | F9: NL-105, | G9: pH, | H9: CHSK-Cr, | I9: PAL-A, | J9: NEL-IČ, | K9: BSK5(ATM), | L9: EL-IČ, | M9: Pc,
A10: 8 | B10: RL-105, NL-105, pH, CHSK-Cr, PAL-A, BSK5(ATM), EL-IČ, Pc, | C10: 8 | D10: =Cenník!Q35 -> 78.67 | E10: RL-105, | F10: NL-105, | G10: pH, | H10: CHSK-Cr, | I10: PAL-A, | K10: BSK5(ATM), | L10: EL-IČ, | M10: Pc,
A11: 9 | B11: RL-105, NL-105, pH, CHSK-Cr, PAL-A, NEL-IČ, BSK5(ATM), Pc, | C11: 8 | D11: =Cenník!S35 -> 85.31 | E11: RL-105, | F11: NL-105, | G11: pH, | H11: CHSK-Cr, | I11: PAL-A, | J11: NEL-IČ, | K11: BSK5(ATM), | M11: Pc,
A12: 10 | B12: RL-105, NL-105, pH, CHSK-Cr, PAL-A, NEL-IČ, Pc, | C12: 7 | D12: =Cenník!U35 -> 78.67 | E12: RL-105, | F12: NL-105, | G12: pH, | H12: CHSK-Cr, | I12: PAL-A, | J12: NEL-IČ, | M12: Pc,
A13: 11 | B13: RL-105, NL-105, pH, CHSK-Cr, PAL-A, NEL-IČ, BSK5(ATM), EL-IČ, Hg, Cu, Cr6+,Crcelk., Pb, As, Cd, | C13: 15 | D13: =Cenník!W35 -> 164.226 | E13: RL-105, | F13: NL-105, | G13: pH, | H13: CHSK-Cr, | I13: PAL-A, | J13: NEL-IČ, | K13: BSK5(ATM), | L13: EL-IČ, | O13: Hg, | P13: Cu, | Q13: Cr6+, | R13: Crcelk., | S13: Pb, | T13: As, | U13: Cd,
A14: 12 | B14: RL-105, NL-105, pH, CHSK-Cr, PAL-A, NEL-IČ, BSK5(ATM), EL-IČ, Hg, Cu, Cr6+,Crcelk., Pb, As, Cd, Ni, Zn, | C14: 17 | D14: =Cenník!Y35 -> 175.506 | E14: RL-105, | F14: NL-105, | G14: pH, | H14: CHSK-Cr, | I14: PAL-A, | J14: NEL-IČ, | K14: BSK5(ATM), | L14: EL-IČ, | O14: Hg, | P14: Cu, | Q14: Cr6+, | R14: Crcelk., | S14: Pb, | T14: As, | U14: Cd, | V14: Ni, | W14: Zn,
A15: 13 | B15: RL-105, NL-105, pH, CHSK-Cr, Cu, Crcelk., Ni, Zn, CNcelk., | C15: 9 | D15: =Cenník!AA35 -> 61.31 | E15: RL-105, | F15: NL-105, | G15: pH, | H15: CHSK-Cr, | P15: Cu, | R15: Crcelk., | V15: Ni, | W15: Zn, | X15: CNcelk.,
A16: 14 | B16: RL-105, NL-105, pH, CHSK-Cr, Cu, Crcelk., Pb, Ni, Zn, CNcelk., | C16: 10 | D16: =Cenník!AC35 -> 67.28 | E16: RL-105, | F16: NL-105, | G16: pH, | H16: CHSK-Cr, | P16: Cu, | R16: Crcelk., | S16: Pb, | V16: Ni, | W16: Zn, | X16: CNcelk.,
A17: 15 | B17: RL-105, NL-105, pH, CHSK-Cr, PAL-A, BSK5(ATM), Pc, | C17: 7 | D17: =Cenník!AE35 -> 42.16 | E17: RL-105, | F17: NL-105, | G17: pH, | H17: CHSK-Cr, | I17: PAL-A, | K17: BSK5(ATM), | M17: Pc,
A18: 16 | B18: RL-105, NL-105, pH, CHSK-Cr, BSK5(ATM), | C18: 5 | D18: =Cenník!AG35 -> 25.56 | E18: RL-105, | F18: NL-105, | G18: pH, | H18: CHSK-Cr, | K18: BSK5(ATM),
A19: 17 | B19: RL-105, NL-105, pH, CHSK-Cr, NEL-IČ, Pc, Ni, Zn, AOX, | C19: 9 | D19: =Cenník!AI35 -> 127.65 | E19: RL-105, | F19: NL-105, | G19: pH, | H19: CHSK-Cr, | J19: NEL-IČ, | M19: Pc, | V19: Ni, | W19: Zn, | Z19: AOX,
A20: 18 | B20: RL-105, NL-105, pH, CHSK-Cr, PAL-A, NEL-IČ, BSK5(ATM), Cu, Crcelk., Ni, Zn, | C20: 11 | D20: =Cenník!AK35 -> 119.086 | E20: RL-105, | F20: NL-105, | G20: pH, | H20: CHSK-Cr, | I20: PAL-A, | J20: NEL-IČ, | K20: BSK5(ATM), | P20: Cu, | R20: Crcelk., | V20: Ni, | W20: Zn,
A21: 19 | B21: RL-105, NL-105, pH, CHSK-Cr, NEL-IČ, BSK5(ATM), | C21: 6 | D21: =Cenník!AM35 -> 68.71 | E21: RL-105, | F21: NL-105, | G21: pH, | H21: CHSK-Cr, | J21: NEL-IČ, | K21: BSK5(ATM),
A22: 20 | B22: RL-105, NL-105, pH, CHSK-Cr, PAL-A, NEL-IČ, Propylénglykol, | C22: 7 | D22: =Cenník!AO35 -> 116.37 | E22: RL-105, | F22: NL-105, | G22: pH, | H22: CHSK-Cr, | I22: PAL-A, | J22: NEL-IČ, | AA22: Propylénglykol,
A23: 21 | B23: RL-105, NL-105, pH, NEL-IČ, | C23: 4 | D23: =Cenník!AQ35 -> 55.43 | E23: RL-105, | F23: NL-105, | G23: pH, | J23: NEL-IČ,
A24: 22 | B24: RL-105, NL-105, pH, CHSK-Cr, Cu, AOX, Sn, Fe, | C24: 8 | D24: =Cenník!AS35 -> 130.19 | E24: RL-105, | F24: NL-105, | G24: pH, | H24: CHSK-Cr, | P24: Cu, | Z24: AOX, | AB24: Sn, | AC24: Fe,
A25: 23 | B25: RL-105, NL-105, pH, CHSK-Cr, PAL-A, NEL-IČ, BSK5(ATM), EL-IČ, Pc, Nc, Hg, Cd, | C25: 12 | D25: =Cenník!AU35 -> 149.466 | E25: RL-105, | F25: NL-105, | G25: pH, | H25: CHSK-Cr, | I25: PAL-A, | J25: NEL-IČ, | K25: BSK5(ATM), | L25: EL-IČ, | M25: Pc, | N25: Nc, | O25: Hg, | U25: Cd,
A26: 24 | B26: RL-105, pH, CHSK-Cr, NEL-IČ, BSK5(ATM), N-NH4, N-NO2, N-NO3, | C26: 8 | D26: =Cenník!AW35 -> 80.16 | E26: RL-105, | G26: pH, | H26: CHSK-Cr, | J26: NEL-IČ, | K26: BSK5(ATM), | AD26: N-NH4, | AE26: N-NO2, | AF26: N-NO3,
A27: 25 | B27: RL-105, NL-105, pH, CHSK-Cr, PAL-A, NEL-IČ, BSK5(ATM), EL-IČ, Crcelk., Zn, | C27: 10 | D27: =Cenník!AY35 -> 124.8 | E27: RL-105, | F27: NL-105, | G27: pH, | H27: CHSK-Cr, | I27: PAL-A, | J27: NEL-IČ, | K27: BSK5(ATM), | L27: EL-IČ, | R27: Crcelk., | W27: Zn,
A28: 26 | B28: RL-105, NL-105, pH, CHSK-Cr, PAL-A, Zn, | C28: 6 | D28: =Cenník!BA35 -> 32.53 | E28: RL-105, | F28: NL-105, | G28: pH, | H28: CHSK-Cr, | I28: PAL-A, | W28: Zn,
A29: 27 | B29: RL-105, NL-105, pH, CHSK-Cr, NEL-IČ, BSK5(ATM), Cd, | C29: 7 | D29: =Cenník!BC35 -> 74.68 | E29: RL-105, | F29: NL-105, | G29: pH, | H29: CHSK-Cr, | J29: NEL-IČ, | K29: BSK5(ATM), | U29: Cd,
A30: 28 | B30: RL-105, NL-105, pH, CHSK-Cr, PAL-A, BSK5(ATM), | C30: 6 | D30: =Cenník!BE35 -> 33.86 | E30: RL-105, | F30: NL-105, | G30: pH, | H30: CHSK-Cr, | I30: PAL-A, | K30: BSK5(ATM),
A31: 29 | B31: RL-105, NL-105, pH, CHSK-Cr, PAL-A, NEL-IČ, BSK5(ATM), EL-IČ, Cu, Zn, | C31: 10 | D31: =Cenník!BG35 -> 124.8 | E31: RL-105, | F31: NL-105, | G31: pH, | H31: CHSK-Cr, | I31: PAL-A, | J31: NEL-IČ, | K31: BSK5(ATM), | L31: EL-IČ, | P31: Cu, | W31: Zn,
A32: 30 | B32: RL-105, NL-105, pH, CHSK-Cr, PAL-A, BSK5(ATM), EL-IČ, Cu, Cr6+,Crcelk., Zn, | C32: 11 | D32: =Cenník!BI35 -> 98.08 | E32: RL-105, | F32: NL-105, | G32: pH, | H32: CHSK-Cr, | I32: PAL-A, | K32: BSK5(ATM), | L32: EL-IČ, | P32: Cu, | Q32: Cr6+, | R32: Crcelk., | W32: Zn,
A33: 31 | B33: RL-105, NL-105, pH, CHSK-Cr, Cu, Cr6+,Crcelk., Zn, | C33: 8 | D33: =Cenník!BK35 -> 46.63 | E33: RL-105, | F33: NL-105, | G33: pH, | H33: CHSK-Cr, | P33: Cu, | Q33: Cr6+, | R33: Crcelk., | W33: Zn,
A34: 32 | B34: =E34&F34&G34&H34&I34&J34&K34&L34&M34&N34&O34&P34&Q34&R34&S34&T34&U34&V34&W34&X34&Y34&Z34&AA34&AB34&AC34&AD34&AE34&AF34 -> RL-105, NL-105, pH, CHSK-Cr, PAL-A, | C34: 5 | D34: =Cenník!BM35 -> 27.22 | E34: RL-105, | F34: NL-105, | G34: pH, | H34: CHSK-Cr, | I34: PAL-A,
A35: 33 | B35: RL-105, NL-105, pH, CHSK-Cr, PAL-A, EL-IČ, | C35: 6 | D35: =Cenník!BO35 -> 63.73 | E35: RL-105, | F35: NL-105, | G35: pH, | H35: CHSK-Cr, | I35: PAL-A, | L35: EL-IČ,
A36: 34 | B36: =E36&F36&G36&H36&I36&J36&K36&L36&M36&N36&O36&P36&Q36&R36&S36&T36&U36&V36&W36&X36&Y36&Z36&AA36&AB36&AC36&AD36&AE36&AF36&AG36 -> RL-105, NL-105, pH, CHSK-Cr, PAL-A, BSK5(ATM), EL-grav,Pc, Nc, | C36: =COUNTA(E36:AG36) -> 9 | D36: =Cenník!BQ35 -> 88.02 | E36: RL-105, | F36: NL-105, | G36: pH, | H36: CHSK-Cr, | I36: PAL-A, | K36: BSK5(ATM), | L36: EL-grav, | M36: Pc, | N36: Nc,
A37: 35 | B37: pH, BSK5(ATM), Pc, Nc, | C37: 4 | D37: =Cenník!BS35 -> 31.54 | G37: pH, | K37: BSK5(ATM), | M37: Pc, | N37: Nc,
A38: 36 | B38: Hg,Pb,As,Cd, | C38: 4 | D38: =Cenník!BU35 -> 28.306 | O38: Hg, | S38: Pb, | T38: As, | U38: Cd,
A39: 37 | B39: CHSK-Cr, BSK5(ATM), N-NH4, | C39: 3 | D39: =Cenník!BW35 -> 19.25 | H39: CHSK-Cr, | K39: BSK5(ATM), | AD39: N-NH4,
A40: 38 | C40: 0
A41: 39 | C41: 0
A42: 40 | C42: 0

Sheet Cenník (hidden)
B1: Skupina 1 | C1: Cena1 | D1: Skupina 2 | E1: Cena2 | F1: Skupina 3 | G1: Cena3 | H1: Skupina 4 | I1: Cena4 | J1: Skupina 5 | K1: Cena5 | L1: Skupina 6 | M1: Cena6 | N1: Skupina 7 | O1: Cena7 | P1: Skupina 8 | Q1: Cena | R1: Skupina 9 | S1: Cena9 | T1: Skupina 10 | U1: Cena10 | V1: Skupina 11 | W1: Cena11 | X1: Skupina 12 | Y1: Cena12 | Z1: Skupina 13 | AA1: Cena13 | AB1: Skupina 14 | AC1: Cena14 | AD1: Skupina 15 | AE1: Cena15 | AF1: Skupina 16 | AG1: Cena16 | AH1: Skupina 17 | AI1: Cena17 | AJ1: Skupina 18 | AK1: Cena18 | AL1: Skupina 19 | AM1: Cena19 | AN1: Skupina 20 | AO1: Cena20 | AP1: Skupina 21 | AQ1: Cena21 | AR1: Skupina 22 | AS1: Cena22 | AT1: Skupina 23 | AU1: Cena23 | AV1: Skupina 24 | AW1: Cena24 | AX1: Skupina 25 | AY1: Cena25 | AZ1: Skupina 26 | BA1: Cena26 | BB1: Skupina 27 | BC1: Cena27 | BD1: Skupina 28 | BE1: Cena28 | BF1: Skupina 29 | BG1: Cena29 | BH1: Skupina 30 | BI1: Cena30 | BJ1: Skupina 31 | BK1: Cena31 | BL1: Skupina 32 | BM1: Cena32 | BN1: Skupina 33 | BO1: Cena33 | BP1: Skupina 34 | BQ1: Cena34 | BR1: Skupina 35 | BS1: Cena35 | BT1: Skupina 36 | BU1: Cena36 | BV1: Skupina 37 | BW1: Cena37 | BY1: Zoznam ukazovateľov | BZ1: Skratka | CA1: Cena
B2: RL-105 | C2: =IF(ISBLANK(B2)," ",VLOOKUP(B2,$BZ$2:$CA$34,2,FALSE)) -> 4.48 | D2: RL-105 | E2: =IF(ISBLANK(D2)," ",VLOOKUP(D2,$BZ$2:$CA$34,2,FALSE)) -> 4.48 | F2: RL-105 | G2: =IF(ISBLANK(F2)," ",VLOOKUP(F2,$BZ$2:$CA$34,2,FALSE)) -> 4.48 | H2: RL-105 | I2: =IF(ISBLANK(H2)," ",VLOOKUP(H2,$BZ$2:$CA$34,2,FALSE)) -> 4.48 | J2: RL-105 | K2: =IF(ISBLANK(J2)," ",VLOOKUP(J2,$BZ$2:$CA$34,2,FALSE)) -> 4.48 | L2: RL-105 | M2: =IF(ISBLANK(L2)," ",VLOOKUP(L2,$BZ$2:$CA$34,2,FALSE)) -> 4.48 | N2: RL-105 | O2: =IF(ISBLANK(N2)," ",VLOOKUP(N2,$BZ$2:$CA$34,2,FALSE)) -> 4.48 | P2: RL-105 | Q2: =IF(ISBLANK(P2)," ",VLOOKUP(P2,$BZ$2:$CA$34,2,FALSE)) -> 4.48 | R2: RL-105 | S2: =IF(ISBLANK(R2)," ",VLOOKUP(R2,$BZ$2:$CA$34,2,FALSE)) -> 4.48 | T2: RL-105 | U2: =IF(ISBLANK(T2)," ",VLOOKUP(T2,$BZ$2:$CA$34,2,FALSE)) -> 4.48 | V2: RL-105 | W2: =IF(ISBLANK(V2)," ",VLOOKUP(V2,$BZ$2:$CA$34,2,FALSE)) -> 4.48 | X2: RL-105 | Y2: =IF(ISBLANK(X2)," ",VLOOKUP(X2,$BZ$2:$CA$34,2,FALSE)) -> 4.48 | Z2: RL-105 | AA2: =IF(ISBLANK(Z2)," ",VLOOKUP(Z2,$BZ$2:$CA$34,2,FALSE)) -> 4.48 | AB2: RL-105 | AC2: =IF(ISBLANK(AB2)," ",VLOOKUP(AB2,$BZ$2:$CA$34,2,FALSE)) -> 4.48 | AD2: RL-105 | AE2: =IF(ISBLANK(AD2)," ",VLOOKUP(AD2,$BZ$2:$CA$34,2,FALSE)) -> 4.48 | AF2: RL-105 | AG2: =IF(ISBLANK(AF2)," ",VLOOKUP(AF2,$BZ$2:$CA$34,2,FALSE)) -> 4.48 | AH2: RL-105 | AI2: =IF(ISBLANK(AH2)," ",VLOOKUP(AH2,$BZ$2:$CA$34,2,FALSE)) -> 4.48 | AJ2: RL-105 | AK2: =IF(ISBLANK(AJ2)," ",VLOOKUP(AJ2,$BZ$2:$CA$34,2,FALSE)) -> 4.48 | AL2: RL-105 | AM2: =IF(ISBLANK(AL2)," ",VLOOKUP(AL2,$BZ$2:$CA$34,2,FALSE)) -> 4.48 | AN2: RL-105 | AO2: =IF(ISBLANK(AN2)," ",VLOOKUP(AN2,$BZ$2:$CA$34,2,FALSE)) -> 4.48 | AP2: RL-105 | AQ2: =IF(ISBLANK(AP2)," ",VLOOKUP(AP2,$BZ$2:$CA$34,2,FALSE)) -> 4.48 | AR2: RL-105 | AS2: =IF(ISBLANK(AR2)," ",VLOOKUP(AR2,$BZ$2:$CA$34,2,FALSE)) -> 4.48 | AT2: RL-105 | AU2: =IF(ISBLANK(AT2)," ",VLOOKUP(AT2,$BZ$2:$CA$34,2,FALSE)) -> 4.48 | AV2: RL-105 | AW2: =IF(ISBLANK(AV2)," ",VLOOKUP(AV2,$BZ$2:$CA$34,2,FALSE)) -> 4.48 | AX2: RL-105 | AY2: =IF(ISBLANK(AX2)," ",VLOOKUP(AX2,$BZ$2:$CA$34,2,FALSE)) -> 4.48 | AZ2: RL-105 | BA2: =IF(ISBLANK(AZ2)," ",VLOOKUP(AZ2,$BZ$2:$CA$34,2,FALSE)) -> 4.48 | BB2: RL-105 | BC2: =IF(ISBLANK(BB2)," ",VLOOKUP(BB2,$BZ$2:$CA$34,2,FALSE)) -> 4.48 | BD2: RL-105 | BE2: =IF(ISBLANK(BD2)," ",VLOOKUP(BD2,$BZ$2:$CA$34,2,FALSE)) -> 4.48 | BF2: RL-105 | BG2: =IF(ISBLANK(BF2)," ",VLOOKUP(BF2,$BZ$2:$CA$34,2,FALSE)) -> 4.48 | BH2: RL-105 | BI2: =IF(ISBLANK(BH2)," ",VLOOKUP(BH2,$BZ$2:$CA$34,2,FALSE)) -> 4.48 | BJ2: RL-105 | BK2: =IF(ISBLANK(BJ2)," ",VLOOKUP(BJ2,$BZ$2:$CA$34,2,FALSE)) -> 4.48 | BL2: RL-105 | BM2: =IF(ISBLANK(BL2)," ",VLOOKUP(BL2,$BZ$2:$CA$34,2,FALSE)) -> 4.48 | BN2: RL-105 | BO2: =IF(ISBLANK(BN2)," ",VLOOKUP(BN2,$BZ$2:$CA$34,2,FALSE)) -> 4.48 | BP2: RL-105 | BQ2: =IF(ISBLANK(BP2)," ",VLOOKUP(BP2,$BZ$2:$CA$34,2,FALSE)) -> 4.48 | BS2: =IF(ISBLANK(BR2)," ",VLOOKUP(BR2,$BZ$2:$CA$34,2,FALSE)) ->  | BU2: =IF(ISBLANK(BT2)," ",VLOOKUP(BT2,$BZ$2:$CA$34,2,FALSE)) ->  | BW2: =IF(ISBLANK(BV2)," ",VLOOKUP(BV2,$BZ$2:$CA$34,2,FALSE)) ->  | BY2: Rozpustené látky pri 105 °C | BZ2: RL-105 | CA2: 4.48
B3: NL-105 | C3: =IF(ISBLANK(B3)," ",VLOOKUP(B3,$BZ$2:$CA$34,2,FALSE)) -> 4.48 | D3: NL-105 | E3: =IF(ISBLANK(D3)," ",VLOOKUP(D3,$BZ$2:$CA$34,2,FALSE)) -> 4.48 | F3: NL-105 | G3: =IF(ISBLANK(F3)," ",VLOOKUP(F3,$BZ$2:$CA$34,2,FALSE)) -> 4.48 | H3: NL-105 | I3: =IF(ISBLANK(H3)," ",VLOOKUP(H3,$BZ$2:$CA$34,2,FALSE)) -> 4.48 | J3: NL-105 | K3: =IF(ISBLANK(J3)," ",VLOOKUP(J3,$BZ$2:$CA$34,2,FALSE)) -> 4.48 | L3: NL-105 | M3: =IF(ISBLANK(L3)," ",VLOOKUP(L3,$BZ$2:$CA$34,2,FALSE)) -> 4.48 | N3: NL-105 | O3: =IF(ISBLANK(N3)," ",VLOOKUP(N3,$BZ$2:$CA$34,2,FALSE)) -> 4.48 | P3: NL-105 | Q3: =IF(ISBLANK(P3)," ",VLOOKUP(P3,$BZ$2:$CA$34,2,FALSE)) -> 4.48 | R3: NL-105 | S3: =IF(ISBLANK(R3)," ",VLOOKUP(R3,$BZ$2:$CA$34,2,FALSE)) -> 4.48 | T3: NL-105 | U3: =IF(ISBLANK(T3)," ",VLOOKUP(T3,$BZ$2:$CA$34,2,FALSE)) -> 4.48 | V3: NL-105 | W3: =IF(ISBLANK(V3)," ",VLOOKUP(V3,$BZ$2:$CA$34,2,FALSE)) -> 4.48 | X3: NL-105 | Y3: =IF(ISBLANK(X3)," ",VLOOKUP(X3,$BZ$2:$CA$34,2,FALSE)) -> 4.48 | Z3: NL-105 | AA3: =IF(ISBLANK(Z3)," ",VLOOKUP(Z3,$BZ$2:$CA$34,2,FALSE)) -> 4.48 | AB3: NL-105 | AC3: =IF(ISBLANK(AB3)," ",VLOOKUP(AB3,$BZ$2:$CA$34,2,FALSE)) -> 4.48 | AD3: NL-105 | AE3: =IF(ISBLANK(AD3)," ",VLOOKUP(AD3,$BZ$2:$CA$34,2,FALSE)) -> 4.48 | AF3: NL-105 | AG3: =IF(ISBLANK(AF3)," ",VLOOKUP(AF3,$BZ$2:$CA$34,2,FALSE)) -> 4.48 | AH3: NL-105 | AI3: =IF(ISBLANK(AH3)," ",VLOOKUP(AH3,$BZ$2:$CA$34,2,FALSE)) -> 4.48 | AJ3: NL-105 | AK3: =IF(ISBLANK(AJ3)," ",VLOOKUP(AJ3,$BZ$2:$CA$34,2,FALSE)) -> 4.48 | AL3: NL-105 | AM3: =IF(ISBLANK(AL3)," ",VLOOKUP(AL3,$BZ$2:$CA$34,2,FALSE)) -> 4.48 | AN3: NL-105 | AO3: =IF(ISBLANK(AN3)," ",VLOOKUP(AN3,$BZ$2:$CA$34,2,FALSE)) -> 4.48 | AP3: NL-105 | AQ3: =IF(ISBLANK(AP3)," ",VLOOKUP(AP3,$BZ$2:$CA$34,2,FALSE)) -> 4.48 | AR3: NL-105 | AS3: =IF(ISBLANK(AR3)," ",VLOOKUP(AR3,$BZ$2:$CA$34,2,FALSE)) -> 4.48 | AT3: NL-105 | AU3: =IF(ISBLANK(AT3)," ",VLOOKUP(AT3,$BZ$2:$CA$34,2,FALSE)) -> 4.48 | AW3: =IF(ISBLANK(AV3)," ",VLOOKUP(AV3,$BZ$2:$CA$34,2,FALSE)) ->  | AX3: NL-105 | AY3: =IF(ISBLANK(AX3)," ",VLOOKUP(AX3,$BZ$2:$CA$34,2,FALSE)) -> 4.48 | AZ3: NL-105 | BA3: =IF(ISBLANK(AZ3)," ",VLOOKUP(AZ3,$BZ$2:$CA$34,2,FALSE)) -> 4.48 | BB3: NL-105 | BC3: =IF(ISBLANK(BB3)," ",VLOOKUP(BB3,$BZ$2:$CA$34,2,FALSE)) -> 4.48 | BD3: NL-105 | BE3: =IF(ISBLANK(BD3)," ",VLOOKUP(BD3,$BZ$2:$CA$34,2,FALSE)) -> 4.48 | BF3: NL-105 | BG3: =IF(ISBLANK(BF3)," ",VLOOKUP(BF3,$BZ$2:$CA$34,2,FALSE)) -> 4.48 | BH3: NL-105 | BI3: =IF(ISBLANK(BH3)," ",VLOOKUP(BH3,$BZ$2:$CA$34,2,FALSE)) -> 4.48 | BJ3: NL-105 | BK3: =IF(ISBLANK(BJ3)," ",VLOOKUP(BJ3,$BZ$2:$CA$34,2,FALSE)) -> 4.48 | BL3: NL-105 | BM3: =IF(ISBLANK(BL3)," ",VLOOKUP(BL3,$BZ$2:$CA$34,2,FALSE)) -> 4.48 | BN3: NL-105 | BO3: =IF(ISBLANK(BN3)," ",VLOOKUP(BN3,$BZ$2:$CA$34,2,FALSE)) -> 4.48 | BP3: NL-105 | BQ3: =IF(ISBLANK(BP3)," ",VLOOKUP(BP3,$BZ$2:$CA$34,2,FALSE)) -> 4.48 | BU3: =IF(ISBLANK(BT3)," ",VLOOKUP(BT3,$BZ$2:$CA$34,2,FALSE)) ->  | BW3: =IF(ISBLANK(BV3)," ",VLOOKUP(BV3,$BZ$2:$CA$34,2,FALSE)) ->  | BY3: Nerozpustené látky pri 105 °C | BZ3: NL-105 | CA3: 4.48
B4: pH | C4: 3.32 | D4: pH | E4: 3.32 | F4: pH | G4: 3.32 | H4: pH | I4: 3.32 | J4: pH | K4: 3.32 | L4: pH | M4: 3.32 | N4: pH | O4: 3.32 | P4: pH | Q4: 3.32 | R4: pH | S4: 3.32 | T4: pH | U4: 3.32 | V4: pH | W4: 3.32 | X4: pH | Y4: 3.32 | Z4: pH | AA4: 3.32 | AB4: pH | AC4: 3.32 | AD4: pH | AE4: 3.32 | AF4: pH | AG4: 3.32 | AH4: pH | AI4: 3.32 | AJ4: pH | AK4: 3.32 | AL4: pH | AM4: 3.32 | AN4: pH | AO4: 3.32 | AP4: pH | AQ4: 3.32 | AR4: pH | AS4: 3.32 | AT4: pH | AU4: 3.32 | AV4: pH | AW4: 3.32 | AX4: pH | AY4: 3.32 | AZ4: pH | BA4: 3.32 | BB4: pH | BC4: 3.32 | BD4: pH | BE4: 3.32 | BF4: pH | BG4: 3.32 | BH4: pH | BI4: 3.32 | BJ4: pH | BK4: 3.32 | BL4: pH | BM4: 3.32 | BN4: pH | BO4: 3.32 | BP4: pH | BQ4: 3.32 | BR4: pH | BS4: 3.32 | BY4: Reakcia vody | BZ4: pH | CA4: 3.32
B5: CHSK-Cr | C5: 6.64 | D5: CHSK-Cr | E5: 6.64 | F5: CHSK-Cr | G5: 6.64 | H5: CHSK-Cr | I5: 6.64 | J5: CHSK-Cr | K5: 6.64 | L5: CHSK-Cr | M5: 6.64 | N5: CHSK-Cr | O5: 6.64 | P5: CHSK-Cr | Q5: 6.64 | R5: CHSK-Cr | S5: 6.64 | T5: CHSK-Cr | U5: 6.64 | V5: CHSK-Cr | W5: 6.64 | X5: CHSK-Cr | Y5: 6.64 | Z5: CHSK-Cr | AA5: 6.64 | AB5: CHSK-Cr | AC5: 6.64 | AD5: CHSK-Cr | AE5: 6.64 | AF5: CHSK-Cr | AG5: 6.64 | AH5: CHSK-Cr | AI5: 6.64 | AJ5: CHSK-Cr | AK5: 6.64 | AL5: CHSK-Cr | AM5: 6.64 | AN5: CHSK-Cr | AO5: 6.64 | AR5: CHSK-Cr | AS5: 6.64 | AT5: CHSK-Cr | AU5: 6.64 | AV5: CHSK-Cr | AW5: 6.64 | AX5: CHSK-Cr | AY5: 6.64 | AZ5: CHSK-Cr | BA5: 6.64 | BB5: CHSK-Cr | BC5: 6.64 | BD5: CHSK-Cr | BE5: 6.64 | BF5: CHSK-Cr | BG5: 6.64 | BH5: CHSK-Cr | BI5: 6.64 | BJ5: CHSK-Cr | BK5: 6.64 | BL5: CHSK-Cr | BM5: 6.64 | BN5: CHSK-Cr | BO5: 6.64 | BP5: CHSK-Cr | BQ5: 6.64 | BV5: CHSK-Cr | BW5: 6.64 | BY5: Chemická spotreba kyslíka dvojchromanom | BZ5: CHSK-Cr | CA5: 6.64
B6: PAL-A | C6: 8.3 | D6: PAL-A | E6: 8.3 | F6: PAL-A | G6: 8.3 | H6: PAL-A | I6: 8.3 | L6: PAL-A | M6: 8.3 | N6: PAL-A | O6: 8.3 | P6: PAL-A | Q6: 8.3 | R6: PAL-A | S6: 8.3 | T6: PAL-A | U6: 8.3 | V6: PAL-A | W6: 8.3 | X6: PAL-A | Y6: 8.3 | AD6: PAL-A | AE6: 8.3 | AJ6: PAL-A | AK6: 8.3 | AN6: PAL-A | AO6: 8.3 | AT6: PAL-A | AU6: 8.3 | AX6: PAL-A | AY6: 8.3 | AZ6: PAL-A | BA6: 8.3 | BD6: PAL-A | BE6: 8.3 | BF6: PAL-A | BG6: 8.3 | BH6: PAL-A | BI6: 8.3 | BL6: PAL-A | BM6: 8.3 | BN6: PAL-A | BO6: 8.3 | BP6: PAL-A | BQ6: 8.3 | BY6: Povrchovo aktívne látky aniónové | BZ6: PAL-A | CA6: 8.3
B7: NEL-IČ | C7: 43.15 | F7: NEL-IČ | G7: 43.15 | H7: NEL-IČ | I7: 43.15 | J7: NEL-IČ | K7: 43.15 | N7: NEL-IČ | O7: 43.15 | R7: NEL-IČ | S7: 43.15 | T7: NEL-IČ | U7: 43.15 | V7: NEL-IČ | W7: 43.15 | X7: NEL-IČ | Y7: 43.15 | AH7: NEL-IČ | AI7: 43.15 | AJ7: NEL-IČ | AK7: 43.15 | AL7: NEL-IČ | AM7: 43.15 | AN7: NEL-IČ | AO7: 43.15 | AP7: NEL-IČ | AQ7: 43.15 | AT7: NEL-IČ | AU7: 43.15 | AV7: NEL-IČ | AW7: 43.15 | AX7: NEL-IČ | AY7: 43.15 | BB7: NEL-IČ | BC7: 43.15 | BF7: NEL-IČ | BG7: 43.15 | BY7: Nepolárne extrahovateľné látky IČ | BZ7: NEL-IČ | CA7: 43.15
B8: BSK5(ATM) | C8: 6.64 | D8: BSK5(ATM) | E8: 6.64 | F8: BSK5(ATM) | G8: 6.64 | L8: BSK5(ATM) | M8: 6.64 | N8: BSK5(ATM) | O8: 6.64 | P8: BSK5(ATM) | Q8: 6.64 | R8: BSK5(ATM) | S8: 6.64 | V8: BSK5(ATM) | W8: 6.64 | X8: BSK5(ATM) | Y8: 6.64 | AD8: BSK5(ATM) | AE8: 6.64 | AF8: BSK5(ATM) | AG8: 6.64 | AJ8: BSK5(ATM) | AK8: 6.64 | AL8: BSK5(ATM) | AM8: 6.64 | AT8: BSK5(ATM) | AU8: 6.64 | AV8: BSK5(ATM) | AW8: 6.64 | AX8: BSK5(ATM) | AY8: 6.64 | BB8: BSK5(ATM) | BC8: 6.64 | BD8: BSK5(ATM) | BE8: 6.64 | BF8: BSK5(ATM) | BG8: 6.64 | BH8: BSK5(ATM) | BI8: 6.64 | BP8: BSK5(ATM) | BQ8: 6.64 | BR8: BSK5(ATM) | BS8: 6.64 | BV8: BSK5(ATM) | BW8: 6.64 | BY8: Biologická spotreba kyslíka - s potlačením nitrifikácie | BZ8: BSK5(ATM) | CA8: 6.64
B9: EL-IČ | C9: 36.51 | D9: EL-IČ | E9: 36.51 | L9: EL-IČ | M9: 36.51 | N9: EL-IČ | O9: 36.51 | P9: EL-IČ | Q9: 36.51 | V9: EL-IČ | W9: 36.51 | X9: EL-IČ | Y9: 36.51 | AT9: EL-IČ | AU9: 36.51 | AX9: EL-IČ | AY9: 36.51 | BF9: EL-IČ | BG9: 36.51 | BH9: EL-IČ | BI9: 36.51 | BN9: EL-IČ | BO9: 36.51 | BY9: Extrahovateľné látky IČ | BZ9: EL-IČ | CA9: 36.51 | CB9: el gravimetricjy pre mliekaren senica cena 32,58.
L10: Pc | M10: 8.3 | N10: Pc | O10: 8.3 | P10: Pc | Q10: 8.3 | R10: Pc | S10: 8.3 | T10: Pc | U10: 8.3 | AD10: Pc | AE10: 8.3 | AH10: Pc | AI10: 8.3 | AT10: Pc | AU10: 8.3 | BP10: Pc | BQ10: 8.3 | BR10: Pc | BS10: 8.3 | BY10: Celkový fosfor | BZ10: Pc | CA10: 8.3
L11: Nc | M11: 13.28 | AT11: Nc | AU11: 13.28 | BP11: Nc | BQ11: 13.28 | BR11: Nc | BS11: 13.28 | BY11: Celkový dusík | BZ11: Nc | CA11: 13.28
V12: Hg | W12: 8.396 | X12: Hg | Y12: 8.396 | AJ12: Hg | AK12: 8.396 | AT12: Hg | AU12: 8.396 | BT12: Hg | BU12: 8.396 | BY12: Ortuť | BZ12: Hg | CA12: 8.396
V13: Cu | W13: 5.97 | X13: Cu | Y13: 5.97 | Z13: Cu | AA13: 5.97 | AB13: Cu | AC13: 5.97 | AJ13: Cu | AK13: 5.97 | AR13: Cu | AS13: 5.97 | BF13: Cu | BG13: 5.97 | BH13: Cu | BI13: 5.97 | BJ13: Cu | BK13: 5.97 | BY13: Meď | BZ13: Cu | CA13: 5.97
V14: Cr6+ | W14: 10.46 | X14: Cr6+ | Y14: 10.46 | AJ14: Cr6+ | AK14: 10.46 | BH14: Cr6+ | BI14: 10.46 | BJ14: Cr6+ | BK14: 10.46 | BY14: Chróm VI | BZ14: Cr6+ | CA14: 10.46 | CB14: vuvh
V15: Crcelk. | W15: 5.97 | X15: Crcelk. | Y15: 5.97 | Z15: Crcelk. | AA15: 5.97 | AB15: Crcelk. | AC15: 5.97 | AJ15: Crcelk. | AK15: 5.97 | AX15: Crcelk. | AY15: 5.97 | BH15: Crcelk. | BI15: 5.97 | BJ15: Crcelk. | BK15: 5.97 | BY15: Chróm celkový | BZ15: Crcelk. | CA15: 5.97
V16: Pb | W16: 5.97 | X16: Pb | Y16: 5.97 | AB16: Pb | AC16: 5.97 | BT16: Pb | BU16: 5.97 | BY16: Olovo | BZ16: Pb | CA16: 5.97
V17: As | W17: 7.97 | X17: As | Y17: 7.97 | BT17: As | BU17: 7.97 | BY17: Arzén | BZ17: As | CA17: 7.97
V18: Cd | W18: 5.97 | X18: Cd | Y18: 5.97 | AT18: Cd | AU18: 5.97 | BB18: Cd | BC18: 5.97 | BT18: Cd | BU18: 5.97 | BY18: meď | BZ18: Cd | CA18: 5.97
X19: Ni | Y19: 5.97 | Z19: Ni | AA19: 5.97 | AB19: Ni | AC19: 5.97 | AH19: Ni | AI19: 5.97 | AJ19: Ni | AK19: 5.97 | BY19: Nikel | BZ19: Ni | CA19: 5.97
X20: Zn | Y20: 5.31 | Z20: Zn | AA20: 5.31 | AB20: Zn | AC20: 5.31 | AH20: Zn | AI20: 5.31 | AJ20: Zn | AK20: 5.31 | AX20: Zn | AY20: 5.31 | AZ20: Zn | BA20: 5.31 | BF20: Zn | BG20: 5.31 | BH20: Zn | BI20: 5.31 | BJ20: Zn | BK20: 5.31 | BY20: Zinok | BZ20: Zn | CA20: 5.31
Z21: CNcelk. | AA21: 19.17 | AB21: CNcelk. | AC21: 19.17 | BY21: Kyanidy celkové | BZ21: CNcelk. | CA21: 19.17
BY22: Adsorbovateľné, organicky viazané halogény | BZ22: AOX | CA22: 46
AH23: AOX | AI23: 46 | AR23: AOX | AS23: 46 | BY23: Propylénglykol | BZ23: Propylénglykol | CA23: 46 | CB23: vuvh
AN24: Propylénglykol | AO24: 46 | BY24: Cín | BZ24: Sn | CA24: 45 | CB24: aj manipulačný poplatok
AR25: Sn | AS25: 45 | BY25: Železo | BZ25: Fe | CA25: 14.3 | CB25: aj manipulačný poplatok
AR26: Fe | AS26: 14.3 | BY26: Amoniakálny dusík | BZ26: N-NH4 | CA26: 5.97
AV27: N-NH4 | AW27: 5.97 | BV27: N-NH4 | BW27: 5.97 | BY27: Dusitanový dusík | BZ27: N-NO2 | CA27: 4.98
AV28: N-NO2 | AW28: 4.98 | BY28: Dusičnanový dusík | BZ28: N-NO3 | CA28: 4.98
AV29: N-NO3 | AW29: 4.98 | BY29: Extrahovateľné látky gravimetricky | BZ29: EL-grav | CA29: 32.58
BP30: EL-grav | BQ30: 32.58
A35: Počet / cena | B35: =COUNTA(B2:B34) -> 8 | C35: =SUM(C2:C34) -> 113.52 | D35: =COUNTA(D2:D34) -> 7 | E35: =SUM(E2:E34) -> 70.37 | F35: 7 | G35: =SUM(G2:G34) -> 77.01 | H35: 6 | I35: =SUM(I2:I34) -> 70.37 | J35: 5 | K35: =SUM(K2:K34) -> 62.07 | L35: 9 | M35: =SUM(M2:M34) -> 91.95 | N35: 9 | O35: =SUM(O2:O34) -> 121.82 | P35: 8 | Q35: =SUM(Q2:Q34) -> 78.67 | R35: 8 | S35: =SUM(S2:S34) -> 85.31 | T35: 7 | U35: =SUM(U2:U34) -> 78.67 | V35: 15 | W35: =SUM(W2:W34) -> 164.226 | X35: 17 | Y35: =SUM(Y2:Y34) -> 175.506 | Z35: 9 | AA35: =SUM(AA2:AA34) -> 61.31 | AB35: 10 | AC35: =SUM(AC2:AC34) -> 67.28 | AD35: 7 | AE35: =SUM(AE2:AE34) -> 42.16 | AF35: 5 | AG35: =SUM(AG2:AG34) -> 25.56 | AH35: 9 | AI35: =SUM(AI2:AI34) -> 127.65 | AJ35: 13 | AK35: =SUM(AK2:AK34) -> 119.086 | AL35: 6 | AM35: =SUM(AM2:AM34) -> 68.71 | AN35: 7 | AO35: =SUM(AO2:AO34) -> 116.37 | AP35: 4 | AQ35: =SUM(AQ2:AQ34) -> 55.43 | AR35: 8 | AS35: =SUM(AS2:AS34) -> 130.19 | AT35: 12 | AU35: =SUM(AU2:AU34) -> 149.466 | AV35: 8 | AW35: =SUM(AW2:AW34) -> 80.16 | AX35: 10 | AY35: =SUM(AY2:AY34) -> 124.8 | AZ35: 6 | BA35: =SUM(BA2:BA34) -> 32.53 | BB35: 7 | BC35: =SUM(BC2:BC34) -> 74.68 | BD35: 6 | BE35: =SUM(BE2:BE34) -> 33.86 | BF35: 10 | BG35: =SUM(BG2:BG34) -> 124.8 | BH35: 11 | BI35: =SUM(BI2:BI34) -> 98.08 | BJ35: 8 | BK35: =SUM(BK2:BK34) -> 46.63 | BL35: 5 | BM35: =SUM(BM2:BM34) -> 27.22 | BN35: 6 | BO35: =SUM(BO2:BO34) -> 63.73 | BP35: 9 | BQ35: =SUM(BQ2:BQ34) -> 88.02 | BR35: 4 | BS35: =SUM(BS2:BS34) -> 31.54 | BT35: =COUNTA(BT2:BT34) -> 4 | BU35: =SUM(BU2:BU34) -> 28.306 | BV35: 3 | BW35: =SUM(BW2:BW34) -> 19.25
B36: Skupina 1 | C36: Cena1 | D36: Skupina 2 | E36: Cena2 | F36: Skupina 3 | G36: Cena3 | H36: Skupina 4 | I36: Cena4 | J36: Skupina 5 | K36: Cena5 | L36: Skupina 6 | M36: Cena6 | N36: Skupina 7 | O36: Cena7 | P36: Skupina 8 | Q36: Cena | R36: Skupina 9 | S36: Cena9 | T36: Skupina 10 | U36: Cena10 | V36: Skupina 11 | W36: Cena11 | X36: Skupina 12 | Y36: Cena12 | Z36: Skupina 13 | AA36: Cena13 | AB36: Skupina 14 | AC36: Cena14 | AD36: Skupina 15 | AE36: Cena15 | AF36: Skupina 16 | AG36: Cena16 | AH36: Skupina 17 | AI36: Cena17 | AJ36: Skupina 18 | AK36: Cena18 | AL36: Skupina 19 | AM36: Cena19 | AN36: Skupina 20 | AO36: Cena20 | AP36: Skupina 21 | AQ36: Cena21 | AR36: Skupina 22 | AS36: Cena22 | AT36: Skupina 23 | AU36: Cena23 | AV36: Skupina 24 | AW36: Cena24 | AX36: Skupina 25 | AY36: Cena25 | AZ36: Skupina 26 | BA36: Cena26 | BB36: Skupina 27 | BC36: Cena27 | BD36: Skupina 28 | BE36: Cena28 | BF36: Skupina 29 | BG36: Cena29 | BH36: Skupina 30 | BI36: Cena30 | BJ36: Skupina 31 | BK36: Cena31 | BL36: Skupina 32 | BM36: Cena32 | BN36: Skupina 33 | BO36: Cena33 | BP36: Skupina 34 | BQ36: Cena34 | BR36: Skupina 35 | BS36: Cena35 | BT36: Skupina 36 | BU36: Cena36 | BV36: Skupina 37 | BW36: Cena37

Sheet Zápis údajov
A1: Oznámenie o prerušení dodávky vody, poruche, preplachoch
A2: Vypĺňať len žlté bunky v stĺpci B !!!! ( Z týchto polí sa prenášajú údaje do oznámení)
A3: Miesto prerušenia: | B3: Kopčianska ul. | C3: Zapísať vo formáte: Názov Mesta/Obce - Názov mestskej časti, prípadne miestnej časti (napr. Ostredky, Trnávka, Pošeň, ....) NEPOUŽÍVAŤ SKRATKY (BA III. a pod.)!!!
A4: Oblasť bez vody: | B4: Kopčianska ul. | C4: Zapísať vo formáte: Názov ulice, resp. bližšie špecifikovať oblasť bez vody vypísaním viacerých ulíc NEPOUŽÍVAŤ SKRATKY (BA II., ul. a pod.)!!!
A5: Plánovaný začiatok prerušenia: | B5: 07.07.2020 od 8:00 hod. | C5: Zapísať vo formáte: Deň.Mesiac.Rok od 00:00 hod.
A6: Plánovaný čas ukončenia prerušenia: | B6: 07.07.2020 do 16:00 hod. | C6: Zapísať vo formáte: Deň.Mesiac.Rok do 00:00 hod.
A7: Náhradné zásobovanie pitnou vodou: | B7: áno | C7: Zapísať vo formáte: Áno / Nie
A8: Spôsob a miesto náhradného zásobovania : | B8: cisterna s pitnou vodou | C8: Len v prípade, že bude zabezpečené náhradné zásobovanie PV. Zapísať vo formáte: cisterna s pitnou vodou / výtokovým stojanom umiestneným (napr. na Galvaniho ulici č. 48)
A9: Doplňujúce informácie: | B9: Dovoľujeme si požiadať odberateľov v dotknutej oblasti o kontrolu vodovodných uzáverov vo svojich nehnuteľnostiach a v prípade potreby si pripraviť primerané zásoby vody. | C9: Zapísať vo formáte: Pole určené pre zapísanie informácií týkajúcich sa konkrétnej udalosti a dotknutí odberatelia by im mali venovať zvýšenú pozornosť! Návrh textu čo by mohlo pole obsahovať - viď bunky C10-C11:
C10: Dovoľujeme si požiadať odberateľov v dotknutej oblasti o kontrolu vodovodných uzáverov vo svojich nehnuteľnostiach a v prípade potreby si pripraviť primerané zásoby vody.
C11: Upozorňujeme, že počas vykonávania preplachu siete verejného vodovodu, môže prísť k dočasnému zhoršeniu kvality vody a zníženiu prevádzkového tlaku dodávanej pitnej vody.
C12: Počas trvania opravy môže dochádzať ku krátkodobým prerušeniam dodávky pitnej vody, a s tým spojenému dočasnému zhoršeniu kvality vody, ktoré je odstraňované mimoriadnymi preplachmi vodovodnej siete.

Sheet Plánované prerušenie pre obec
A7: Oznámenie o prerušení dodávky vody z verejného vodovodu pre obec
A9: Bratislavská vodárenská spoločnosť, a.s. ako prevádzkovateľ verejného vodovodu a v zmysle Zákona č.442/2002 Z.z. o verejných vodovodoch a verejných kanalizáciách, §32 ods.7 bod b) Vám oznamuje prerušenie dodávky vody z verejného vodovodu z dôvodu vykonávania plánovanej opravy verejného vodovodu.
A13: Miesto prerušenia: | D13: =IF(ISBLANK('Zápis údajov'!B3)," ",'Zápis údajov'!B3) -> Kopčianska ul.
A14: Oblasť bez vody: | D14: =IF(ISBLANK('Zápis údajov'!B4)," ",'Zápis údajov'!B4) -> Kopčianska ul.
A15: Plánovaný začiatok prerušenia: | D15: =IF(ISBLANK('Zápis údajov'!B5)," ",'Zápis údajov'!B5) -> 07.07.2020 od 8:00 hod.
A16: Plánovaný čas ukončenia prerušenia: | D16: =IF(ISBLANK('Zápis údajov'!B6)," ",'Zápis údajov'!B6) -> 07.07.2020 do 16:00 hod.
A17: Náhradné zásobovanie pitnou vodou: | D17: ='Zápis údajov'!B7 -> áno
A18: Spôsob a miesto náhradného zásobovania : | D18: ='Zápis údajov'!B8 -> cisterna s pitnou vodou
A19: Doplňujúce informácie: | D19: ='Zápis údajov'!B9 -> Dovoľujeme si požiadať odberateľov v dotknutej oblasti o kontrolu vodovodných uzáverov vo svojich nehnuteľnostiach a v prípade potreby si pripraviť primerané zásoby vody.
A21: Za spôsobené komplikácie sa Vám ospravedlňujeme avšak oprava daného úseku verejného vodovodu je potrebná z dôvodu poruchovej udalosti, ako aj z dôvodu zabezpečenia požadovanej kvality dodávanej pitnej vody. V prípade akýchkoľvek problémov s dodávkou vody, môžete kontaktovať Poruchový dispečing BVS, a.s. s 24-hodinovou prevádzkou na bezplatnom telefónnom čísle 0800 121 333.
A26: Zároveň si Vás dovoľujeme požiadať o informovanie obyvateľov v dotknutej oblasti miestne obvyklým spôsobom, napr. vyhlásením oznamu miestnym rozhlasom, resp. zverejnením oznamu na Vašej webovej stránke.
B30: Ďakujeme za pochopenie a ostávame s pozdravom.
F34: Ing. Michal Dušanič
F35: vedúci divízie distribúcie vody
A36: Na vedomie:
A37: Obyvatelia v dotknutej oblasti

Sheet Plánované prerušenie pre obyv
A7: Oznámenie o prerušení dodávky vody z verejného vodovodu pre obyvateľov
A10: Bratislavská vodárenská spoločnosť, a.s. ako prevádzkovateľ verejného vodovodu a v zmysle Zákona č.442/2002 Z.z. o verejných vodovodoch a verejných kanalizáciách, §32 ods.7 bod b) Vám oznamuje prerušenie dodávky vody z verejného vodovodu z dôvodu vykonávania plánovanej opravy verejného vodovodu.
A14: Miesto prerušenia: | D14: =IF(ISBLANK('Zápis údajov'!B3)," ",'Zápis údajov'!B3) -> Kopčianska ul.
A15: Oblasť bez vody: | D15: =IF(ISBLANK('Zápis údajov'!B4)," ",'Zápis údajov'!B4) -> Kopčianska ul.
A16: Plánovaný začiatok prerušenia: | D16: =IF(ISBLANK('Zápis údajov'!B5)," ",'Zápis údajov'!B5) -> 07.07.2020 od 8:00 hod.
A17: Plánovaný čas ukončenia prerušenia: | D17: =IF(ISBLANK('Zápis údajov'!B6)," ",'Zápis údajov'!B6) -> 07.07.2020 do 16:00 hod.
A18: Náhradné zásobovanie pitnou vodou: | D18: ='Zápis údajov'!B7 -> áno
A19: Spôsob a miesto náhradného zásobovania : | D19: ='Zápis údajov'!B8 -> cisterna s pitnou vodou
A20: Doplňujúce informácie: | D20: ='Zápis údajov'!B9 -> Dovoľujeme si požiadať odberateľov v dotknutej oblasti o kontrolu vodovodných uzáverov vo svojich nehnuteľnostiach a v prípade potreby si pripraviť primerané zásoby vody.
A22: Za spôsobené komplikácie sa Vám ospravedlňujeme avšak oprava daného úseku verejného vodovodu je potrebná z dôvodu poruchovej udalosti, ako aj z dôvodu zabezpečenia požadovanej kvality dodávanej pitnej vody. V prípade akýchkoľvek problémov s dodávkou vody, môžete kontaktovať Poruchový dispečing BVS, a.s. s 24-hodinovou prevádzkou na bezplatnom telefónnom čísle 0800 121 333.
B27: Ďakujeme za pochopenie a ostávame s pozdravom.
F32: Ing. Michal Dušanič
F33: vedúci divízie distribúcie vody
A35: Na vedomie:
A36: Obec

Sheet Preplachy pre obec
A7: Oznámenie o vykonávaní prevetívneho preplachu verejného vodovodu pre obec
A9: Bratislavská vodárenská spoločnosť, a.s. ako prevádzkovateľ verejného vodovodu a v zmysle Zákona č.442/2002 Z.z. o verejných vodovodoch a verejných kanalizáciách, Vám oznamuje vykonávanie preventívneho preplachu verejného vodovodu.
A13: Miesto prerušenia: | D13: =IF(ISBLANK('Zápis údajov'!B3)," ",'Zápis údajov'!B3) -> Kopčianska ul.
A14: Oblasť bez vody: | D14: =IF(ISBLANK('Zápis údajov'!B4)," ",'Zápis údajov'!B4) -> Kopčianska ul.
A15: Plánovaný začiatok preplachu: | D15: =IF(ISBLANK('Zápis údajov'!B5)," ",'Zápis údajov'!B5) -> 07.07.2020 od 8:00 hod.
A16: Plánovaný čas ukončenia preplachu: | D16: =IF(ISBLANK('Zápis údajov'!B6)," ",'Zápis údajov'!B6) -> 07.07.2020 do 16:00 hod.
A17: Náhradné zásobovanie pitnou vodou: | D17: ='Zápis údajov'!B7 -> áno
A18: Spôsob a miesto náhradného zásobovania : | D18: ='Zápis údajov'!B8 -> cisterna s pitnou vodou
A19: Doplňujúce informácie: | D19: ='Zápis údajov'!B9 -> Dovoľujeme si požiadať odberateľov v dotknutej oblasti o kontrolu vodovodných uzáverov vo svojich nehnuteľnostiach a v prípade potreby si pripraviť primerané zásoby vody.
A21: Za spôsobené komplikácie sa Vám ospravedlňujeme, avšak preventívny preplach verejného vodovodu je potrebný z dôvodu zachovania kvality dodávanej pitnej vody. V prípade akýchkoľvek problémov s dodávkou vody, môžete kontaktovať Poruchový dispečing BVS, a.s. s 24-hodinovou prevádzkou na bezplatnom telefónnom čísle 0800 121 333.
A26: Zároveň si Vás dovoľujeme požiadať o informovanie obyvateľov v dotknutej oblasti miestne obvyklým spôsobom, napr. vyhlásením oznamu miestnym rozhlasom, resp. zverejnením oznamu na Vašej webovej stránke.
B30: Ďakujeme za pochopenie a ostávame s pozdravom.
F34: Ing. Michal Dušanič
F35: vedúci divízie distribúcie vody
A37: Na vedomie:
A38: Obyvatelia v dotknutej oblasti

Sheet Preplachy pre obyvateľov
A7: Oznámenie o vykonávaní prevetívneho preplachu verejného vodovodu
A8: pre obyvateľov
A10: Bratislavská vodárenská spoločnosť, a.s. ako prevádzkovateľ verejného vodovodu a v zmysle Zákona č.442/2002 Z.z. o verejných vodovodoch a verejných kanalizáciách, Vám oznamuje vykonávanie preventívneho preplachu verejného vodovodu.
A14: Miesto prerušenia: | D14: =IF(ISBLANK('Zápis údajov'!B3)," ",'Zápis údajov'!B3) -> Kopčianska ul.
A15: Oblasť bez vody: | D15: =IF(ISBLANK('Zápis údajov'!B4)," ",'Zápis údajov'!B4) -> Kopčianska ul.
A16: Plánovaný začiatok preplachu: | D16: =IF(ISBLANK('Zápis údajov'!B5)," ",'Zápis údajov'!B5) -> 07.07.2020 od 8:00 hod.
A17: Plánovaný čas ukončenia preplachu: | D17: =IF(ISBLANK('Zápis údajov'!B6)," ",'Zápis údajov'!B6) -> 07.07.2020 do 16:00 hod.
A18: Náhradné zásobovanie pitnou vodou: | D18: ='Zápis údajov'!B7 -> áno
A19: Spôsob a miesto náhradného zásobovania : | D19: ='Zápis údajov'!B8 -> cisterna s pitnou vodou
A20: Doplňujúce informácie: | D20: ='Zápis údajov'!B9 -> Dovoľujeme si požiadať odberateľov v dotknutej oblasti o kontrolu vodovodných uzáverov vo svojich nehnuteľnostiach a v prípade potreby si pripraviť primerané zásoby vody.
A22: Za spôsobené komplikácie sa Vám ospravedlňujeme, avšak preventívny preplach verejného vodovodu je potrebný z dôvodu zachovania kvality dodávanej pitnej vody. V prípade akýchkoľvek problémov s dodávkou vody, môžete kontaktovať Poruchový dispečing BVS, a.s. s 24-hodinovou prevádzkou na bezplatnom telefónnom čísle 0800 121 333.
B27: Ďakujeme za pochopenie a ostávame s pozdravom.
F31: Ing. Michal Dušanič
F32: vedúci divízie distribúcie vody
A37: Na vedomie:
A38: Obec

Sheet Porucha pre obec
B7: Oznámenie o prerušení dodávky vody z verejného vodovodu pre obec
A9: Bratislavská vodárenská spoločnosť, a.s. ako prevádzkovateľ verejného vodovodu a v zmysle Zákona č.442/2002 Z.z. o verejných vodovodoch a verejných kanalizáciách, §32 ods.1 bod b), Vám oznamuje prerušenie dodávky vody z verejného vodovodu z dôvodu neplánovanej opravy poruchy verejného vodovodu.
A13: Miesto prerušenia: | D13: =IF(ISBLANK('Zápis údajov'!B3)," ",'Zápis údajov'!B3) -> Kopčianska ul.
A14: Oblasť bez vody: | D14: =IF(ISBLANK('Zápis údajov'!B4)," ",'Zápis údajov'!B4) -> Kopčianska ul.
A15: Plánovaný začiatok prerušenia: | D15: =IF(ISBLANK('Zápis údajov'!B5)," ",'Zápis údajov'!B5) -> 07.07.2020 od 8:00 hod.
A16: Plánovaný čas ukončenia prerušenia: | D16: =IF(ISBLANK('Zápis údajov'!B6)," ",'Zápis údajov'!B6) -> 07.07.2020 do 16:00 hod.
A17: Náhradné zásobovanie pitnou vodou: | D17: ='Zápis údajov'!B7 -> áno
A18: Spôsob a miesto náhradného zásobovania : | D18: ='Zápis údajov'!B8 -> cisterna s pitnou vodou
A19: Doplňujúce informácie: | D19: ='Zápis údajov'!B9 -> Dovoľujeme si požiadať odberateľov v dotknutej oblasti o kontrolu vodovodných uzáverov vo svojich nehnuteľnostiach a v prípade potreby si pripraviť primerané zásoby vody.
A21: Za spôsobené komplikácie sa Vám ospravedlňujeme. Oprava daného úseku verejného vodovodu je potrebná z dôvodu poruchovej udalosti, ako aj z dôvodu zabezpečenia požadovanej kvality pitnej vody. V prípade akýchkoľvek problémov s dodávkou pitnej vody, môžete kontaktovať poruchový dispečing BVS, a.s. s 24-hodinovou prevádzkou na bezplatnom telefónnom čísle 0800 121 333.
A26: Zároveň si Vás dovoľujeme požiadať o informovanie obyvateľov v dotknutej oblasti miestne obvyklým spôsobom, napr. vyhlásením oznamu miestnym rozhlasom, resp. zverejnením oznamu na Vašej webovej stránke.
B30: Ďakujeme za pochopenie a ostávame s pozdravom.
F34: Ing. Michal Dušanič
F35: vedúci divízie distribúcie vody
A37: Na vedomie:
A38: Obyvatelia v dotknutej oblasti

Sheet Porucha pre obyvateľov
A7: Oznámenie o prerušení dodávky vody z verejného vodovodu
A8: pre obyvateľov
A10: Bratislavská vodárenská spoločnosť, a.s. ako prevádzkovateľ verejného vodovodu a v zmysle Zákona č.442/2002 Z.z. o verejných vodovodoch a verejných kanalizáciách, §32 ods.1 bod b), Vám oznamuje prerušenie dodávky vody z verejného vodovodu z dôvodu neplánovanej opravy poruchy verejného vodovodu.
A14: Miesto prerušenia: | D14: =IF(ISBLANK('Zápis údajov'!B3)," ",'Zápis údajov'!B3) -> Kopčianska ul.
A15: Oblasť bez vody: | D15: =IF(ISBLANK('Zápis údajov'!B4)," ",'Zápis údajov'!B4) -> Kopčianska ul.
A16: Plánovaný začiatok prerušenia: | D16: =IF(ISBLANK('Zápis údajov'!B5)," ",'Zápis údajov'!B5) -> 07.07.2020 od 8:00 hod.
A17: Plánovaný čas ukončenia prerušenia: | D17: =IF(ISBLANK('Zápis údajov'!B6)," ",'Zápis údajov'!B6) -> 07.07.2020 do 16:00 hod.
A18: Náhradné zásobovanie pitnou vodou: | D18: ='Zápis údajov'!B7 -> áno
A19: Spôsob a miesto náhradného zásobovania : | D19: ='Zápis údajov'!B8 -> cisterna s pitnou vodou
A20: Doplňujúce informácie: | D20: ='Zápis údajov'!B9 -> Dovoľujeme si požiadať odberateľov v dotknutej oblasti o kontrolu vodovodných uzáverov vo svojich nehnuteľnostiach a v prípade potreby si pripraviť primerané zásoby vody.
A22: Za spôsobené komplikácie sa Vám ospravedlňujeme. Oprava daného úseku verejného vodovodu je potrebná z dôvodu poruchovej udalosti, ako aj z dôvodu zabezpečenia požadovanej kvality pitnej vody. V prípade akýchkoľvek problémov s dodávkou pitnej vody, môžete kontaktovať poruchový dispečing BVS, a.s. s 24-hodinovou prevádzkou na bezplatnom telefónnom čísle 0800 121 333.
B27: Ďakujeme za pochopenie a ostávame s pozdravom.
F32: Ing. Michal Dušanič
F33: vedúci divízie distribúcie vody
A38: Na vedomie:
A39: Obec

Sheet BA počty (hidden)
A1: Bratislava | C1: Počet
A2: Zoznam ukazovateľov | B2: Skratka | C2: inšpekčný | D2: zberače | E2: DOOV | F2: spolu
A3: Rozpustené látky pri 105 °C | B3: RL-105 | C3: =SUMIFS(#REF!,#REF!,$A$1,#REF!,"M") ->  | D3: =SUMIFS(#REF!,#REF!,$A$1,#REF!,"M") ->  | E3: =SUMIFS(#REF!,#REF!,$A$1,#REF!,"M") ->  | F3: =C3+D3+E3 -> 
A4: Nerozpustené látky pri 105 °C | B4: NL-105 | C4: =SUMIFS(#REF!,#REF!,$A$1,#REF!,"M") ->  | D4: =SUMIFS(#REF!,#REF!,$A$1,#REF!,"M") ->  | E4: =SUMIFS(#REF!,#REF!,$A$1,#REF!,"M") ->  | F4: =C4+D4+E4 -> 
A5: Reakcia vody | B5: pH | C5: =SUMIFS(#REF!,#REF!,$A$1,#REF!,"M") ->  | D5: =SUMIFS(#REF!,#REF!,$A$1,#REF!,"M") ->  | E5: =SUMIFS(#REF!,#REF!,$A$1,#REF!,"M") -> 
A6: Chemická spotreba kyslíka dvojchromanom | B6: CHSK-Cr | C6: =SUMIFS(#REF!,#REF!,$A$1,#REF!,"M") ->  | D6: =SUMIFS(#REF!,#REF!,$A$1,#REF!,"M") ->  | E6: =SUMIFS(#REF!,#REF!,$A$1,#REF!,"M") -> 
A7: Povrchovo aktívne látky aniónové | B7: PAL-A | C7: =SUMIFS(#REF!,#REF!,$A$1,#REF!,"M") ->  | D7: =SUMIFS(#REF!,#REF!,$A$1,#REF!,"M") ->  | E7: =SUMIFS(#REF!,#REF!,$A$1,#REF!,"M") -> 
A8: Nepolárne extrahovateľné látky IČ | B8: NEL-IČ | C8: =SUMIFS(#REF!,#REF!,$A$1,#REF!,"M") ->  | D8: =SUMIFS(#REF!,#REF!,$A$1,#REF!,"M") ->  | E8: =SUMIFS(#REF!,#REF!,$A$1,#REF!,"M") -> 
A9: Biologická spotreba kyslíka - s potlačením nitrifikácie | B9: BSK5(ATM) | C9: =SUMIFS(#REF!,#REF!,$A$1,#REF!,"M") ->  | D9: =SUMIFS(#REF!,#REF!,$A$1,#REF!,"M") ->  | E9: =SUMIFS(#REF!,#REF!,$A$1,#REF!,"M") -> 
A10: Extrahovateľné látky IČ | B10: EL-IČ | C10: =SUMIFS(#REF!,#REF!,$A$1,#REF!,"M") ->  | D10: =SUMIFS(#REF!,#REF!,$A$1,#REF!,"M") ->  | E10: =SUMIFS(#REF!,#REF!,$A$1,#REF!,"M") -> 
A11: Celkový fosfor | B11: Pc | C11: =SUMIFS(#REF!,#REF!,$A$1,#REF!,"M") ->  | D11: =SUMIFS(#REF!,#REF!,$A$1,#REF!,"M") ->  | E11: =SUMIFS(#REF!,#REF!,$A$1,#REF!,"M") -> 
A12: Celkový dusík | B12: Nc | C12: =SUMIFS(#REF!,#REF!,$A$1,#REF!,"M") ->  | D12: =SUMIFS(#REF!,#REF!,$A$1,#REF!,"M") ->  | E12: =SUMIFS(#REF!,#REF!,$A$1,#REF!,"M") -> 
A13: Ortuť | B13: Hg | C13: =SUMIFS(#REF!,#REF!,$A$1,#REF!,"M") ->  | D13: =SUMIFS(#REF!,#REF!,$A$1,#REF!,"M") ->  | E13: =SUMIFS(#REF!,#REF!,$A$1,#REF!,"M") -> 
A14: Meď | B14: Cu | C14: =SUMIFS(#REF!,#REF!,$A$1,#REF!,"M") ->  | D14: =SUMIFS(#REF!,#REF!,$A$1,#REF!,"M") ->  | E14: =SUMIFS(#REF!,#REF!,$A$1,#REF!,"M") -> 
A15: Chróm VI | B15: Cr6+ | C15: =SUMIFS(#REF!,#REF!,$A$1,#REF!,"M") ->  | D15: =SUMIFS(#REF!,#REF!,$A$1,#REF!,"M") ->  | E15: =SUMIFS(#REF!,#REF!,$A$1,#REF!,"M") -> 
A16: Chróm celkový | B16: Crcelk. | C16: =SUMIFS(#REF!,#REF!,$A$1,#REF!,"M") ->  | D16: =SUMIFS(#REF!,#REF!,$A$1,#REF!,"M") ->  | E16: =SUMIFS(#REF!,#REF!,$A$1,#REF!,"M") -> 
A17: Olovo | B17: Pb | C17: =SUMIFS(#REF!,#REF!,$A$1,#REF!,"M") ->  | D17: =SUMIFS(#REF!,#REF!,$A$1,#REF!,"M") ->  | E17: =SUMIFS(#REF!,#REF!,$A$1,#REF!,"M") -> 
A18: Arzén | B18: As | C18: =SUMIFS(#REF!,#REF!,$A$1,#REF!,"M") ->  | D18: =SUMIFS(#REF!,#REF!,$A$1,#REF!,"M") ->  | E18: =SUMIFS(#REF!,#REF!,$A$1,#REF!,"M") -> 
A19: Kadmium | B19: Cd | C19: =SUMIFS(#REF!,#REF!,$A$1,#REF!,"M") ->  | D19: =SUMIFS(#REF!,#REF!,$A$1,#REF!,"M") ->  | E19: =SUMIFS(#REF!,#REF!,$A$1,#REF!,"M") -> 
A20: Nikel | B20: Ni | C20: =SUMIFS(#REF!,#REF!,$A$1,#REF!,"M") ->  | D20: =SUMIFS(#REF!,#REF!,$A$1,#REF!,"M") ->  | E20: =SUMIFS(#REF!,#REF!,$A$1,#REF!,"M") -> 
A21: Zinok | B21: Zn | C21: =SUMIFS(#REF!,#REF!,$A$1,#REF!,"M") ->  | D21: =SUMIFS(#REF!,#REF!,$A$1,#REF!,"M") ->  | E21: =SUMIFS(#REF!,#REF!,$A$1,#REF!,"M") -> 
A22: Kyanidy celkové | B22: CNcelk. | C22: =SUMIFS(#REF!,#REF!,$A$1,#REF!,"M") ->  | D22: =SUMIFS(#REF!,#REF!,$A$1,#REF!,"M") ->  | E22: =SUMIFS(#REF!,#REF!,$A$1,#REF!,"M") -> 
A23: Adsorbovateľné, organicky viazané halogény | B23: AOX | C23: =SUMIFS(#REF!,#REF!,$A$1,#REF!,"M") ->  | D23: =SUMIFS(#REF!,#REF!,$A$1,#REF!,"M") ->  | E23: =SUMIFS(#REF!,#REF!,$A$1,#REF!,"M") -> 
A24: Propylénglykol | B24: Propylénglykol | C24: =SUMIFS(#REF!,#REF!,$A$1,#REF!,"M") ->  | D24: =SUMIFS(#REF!,#REF!,$A$1,#REF!,"M") ->  | E24: =SUMIFS(#REF!,#REF!,$A$1,#REF!,"M") -> 
A25: Cín | B25: Sn | C25: =SUMIFS(#REF!,#REF!,$A$1,#REF!,"M") ->  | D25: =SUMIFS(#REF!,#REF!,$A$1,#REF!,"M") ->  | E25: =SUMIFS(#REF!,#REF!,$A$1,#REF!,"M") -> 
A26: Železo | B26: Fe | C26: =SUMIFS(#REF!,#REF!,$A$1,#REF!,"M") ->  | D26: =SUMIFS(#REF!,#REF!,$A$1,#REF!,"M") ->  | E26: =SUMIFS(#REF!,#REF!,$A$1,#REF!,"M") -> 
A27: Amoniakálny dusík | B27: N-NH4 | C27: =SUMIFS(#REF!,#REF!,$A$1,#REF!,"M") ->  | D27: =SUMIFS(#REF!,#REF!,$A$1,#REF!,"M") ->  | E27: =SUMIFS(#REF!,#REF!,$A$1,#REF!,"M") -> 
A28: Dusitanový dusík | B28: N-NO2 | C28: =SUMIFS(#REF!,#REF!,$A$1,#REF!,"M") ->  | D28: =SUMIFS(#REF!,#REF!,$A$1,#REF!,"M") ->  | E28: =SUMIFS(#REF!,#REF!,$A$1,#REF!,"M") -> 
A29: Dusičnanový dusík | B29: N-NO3 | C29: =SUMIFS(#REF!,#REF!,$A$1,#REF!,"M") ->  | D29: =SUMIFS(#REF!,#REF!,$A$1,#REF!,"M") ->  | E29: =SUMIFS(#REF!,#REF!,$A$1,#REF!,"M") -> 
A30: Extrahovateľné látky gravimetricky | B30: EL-grav | C30: =SUMIFS(#REF!,#REF!,$A$1,#REF!,"M") ->  | D30: =SUMIFS(#REF!,#REF!,$A$1,#REF!,"M") ->  | E30: =SUMIFS(#REF!,#REF!,$A$1,#REF!,"M") -> 
F31: 0
F32: 0
F33: 0
F34: 0
F35: 0
A36: =COUNTA(A3:A35) -> 28 | B36: =COUNTA(B3:B35) -> 28 | C36: =SUM(C3:C35) ->  | D36: =SUM(D3:D35) ->  | E36: =SUM(E3:E35) ->  | F36: =SUM(F3:F35) -> 
B38: Počet odberov | C38: Cena | D38: Počet ukazovateľov
A39: BVS inšpekčný monitoring | B39: =SUMIFS(#REF!,#REF!,$A$1,#REF!,"M") ->  | C39: =SUMIFS(#REF!,#REF!,$A$1,#REF!,"M") ->  | D39: =C36 -> 
A40: BVS zberače | B40: =SUMIFS(#REF!,#REF!,$A$1,#REF!,"M") ->  | C40: =SUMIFS(#REF!,#REF!,$A$1,#REF!,"M") ->  | D40: =D36 -> 
A41: Špecifické požiadavky DOOV | B41: =SUMIFS(#REF!,#REF!,$A$1,#REF!,"M") ->  | C41: =SUMIFS(#REF!,#REF!,$A$1,#REF!,"M") ->  | D41: =E36 -> 
B42: =SUM(B39:B41) ->  | C42: =SUM(C39:C41) -> 
A44: Producenti inšpekčný monitoring | B44: =SUMIFS(#REF!,#REF!,$A$1,#REF!,"M") ->  | C44: =SUMIFS(#REF!,#REF!,$A$1,#REF!,"M") -> 
B47: KBV | C47: BV | D47: 24Z
A48: BVS inšpekčný monitoring | B48: =SUMIFS(#REF!,#REF!,$B$47,#REF!,$A$1,#REF!,"M") ->  | C48: =SUMIFS(#REF!,#REF!,$C$47,#REF!,$A$1,#REF!,"M") ->  | D48: =SUMIFS(#REF!,#REF!,$D$47,#REF!,$A$1,#REF!,"M") -> 
A49: BVS zberače | B49: =SUMIFS(#REF!,#REF!,$B$47,#REF!,$A$1,#REF!,"M") ->  | C49: =SUMIFS(#REF!,#REF!,$C$47,#REF!,$A$1,#REF!,"M") ->  | D49: =SUMIFS(#REF!,#REF!,$D$47,#REF!,$A$1,#REF!,"M") -> 
A50: Špecifické požiadavky DOOV | B50: =SUMIFS(#REF!,#REF!,$B$47,#REF!,$A$1,#REF!,"M") ->  | C50: =SUMIFS(#REF!,#REF!,$C$47,#REF!,$A$1,#REF!,"M") ->  | D50: =SUMIFS(#REF!,#REF!,$D$47,#REF!,$A$1,#REF!,"M") -> 
B51: =SUM(B48:B50) ->  | C51: =SUM(C48:C50) ->  | E51: =SUM(B51:D51) -> 

Sheet Ext. lab. (hidden)
A1: P.č. | B1: Názov | C1: Poznámka
A2: 1 | B2: ALS Group
A3: 2 | B3: AQUASECO s.r.o.
A4: 3 | B4: AQUATEST a.s.
A5: 4 | B5: BVS a.s.
A6: 5 | B6: Ekolab s.r.o.
A7: 6 | B7: Eurofins Bel/Novamann s.r.o. | C7: 8.10.2014 stanovuje: NEL IČ aj NEL UV, EL IČ aj EL UV, BSK5(ATM) uvádzajú aj v protokole,
A8: 7 | B8: Chemický ústav SAV
A9: 8 | B9: Chempal
A10: 9 | B10: INGEO-ENVILAB s.r.o.
A11: 10 | B11: Labeko s.r.o.
A12: 11 | B12: Monitoring s.r.o.
A13: 12 | B13: Slovenský vodohos.podnik, š.p., Bratislava
A14: 13 | B14: Úrad verejného zdravotníctva SR
A15: 14 | B15: Slovenský vodohos.podnik, š.p., Piešťany
A16: 15 | B16: VÚRUP a.s.
A17: 16 | B17: VÚVH
A18: 17 | B18: Výskumný ústav zváračský
A19: 18 | B19: MND a.s.
A20: 19
A21: 20
A22: 21
A23: 22
A24: 23
A25: 24
A26: 25
A27: 26
A28: 27
A29: 28
A30: 29
A31: 30
A32: 31
A33: 32
A34: 33
A35: 34
A36: 35
A37: 36
A38: 37
A39: 38
A40: 39
A41: 40
A42: 41
A43: 42
A44: 43
A45: 44
A46: 45
A47: 46
A48: 47
A49: 48
A50: 49
A51: 50

Sheet Porovnanie (hidden)
A1: BVS
A2: Prietok | B2: Prietok | C2: Ukazovateľ / Koeficient znečistenia | D2: Ukazovateľ / Koeficient znečistenia | E2: Ukazovateľ / Koeficient znečistenia
A3: l/s | B3: l/s | C3: CHSKCr, BSK5, NEL IČ, ťažké kovy | D3: pH | E3: ostatné
A4: 0 | B4: 5 | C4: 0.08 | D4: 0.065 | E4: 0.04
A5: 5.000000001 | B5: 10 | C5: 0.07 | D5: 0.065 | E5: 0.03
A6: 10 | B6: 50 | C6: 0.06 | D6: 0.065 | E6: 0.02
A7: 50 | B7: 1000000 | C7: 0.05 | D7: 0.065 | E7: 0.01
A9: VVS
C10: BSK5, NEL IČ, ťažké kovy | D10: CHSKCr a ostatné | E10: CHSKCr a ostatné
A11: 0 | B11: 5 | C11: 0.04 | D11: 0.02 | E11: 0.12
A12: 5.000000001 | B12: 10 | C12: 0.03 | D12: 0.02 | E12: 0.09
A13: 10 | B13: 50 | C13: 0.02 | D13: 0.01 | E13: 0.06
A14: 50 | B14: 1000000 | C14: 0.02 | D14: 0.01 | E14: 0.06
A16: Tatry
A17: Prietok OV, zistené za rok (l/s) | B17: Sadzba za prekročenie koncentračného limitu (Euro) | C17: Sadzba za ďalšie % prekročenia koncentračnéholimitu ( Euro)
A18: Q <=0,2 | B18: 20 | C18: (+) 0,33Euro za každé % prekročenia
A19: 0,2 <Q <=0,5 | B19: 40 | C19: (+) 0,83Euro za každé % prekročenia
A20: 0,5 <Q <=1,0 | B20: 65 | C20: (+) 3,33 Euro za každé % prekročenia
A21: 1,0 <Q <=2,0 | B21: 100 | C21: (+) 3,33 Euro za každé % prekročenia
A22: 2,0 <Q <=5,0 | B22: 165 | C22: (+) 3,33 Euro za každé % prekročenia
A23: 5,0 <Q <=10,0 | B23: 330 | C23: (+) 6,66 Euro za každé % prekročenia
A24: 10,0 <Q | B24: 500 | C24: (+) 11,66 Euro za každé % prekročenia
A27: ZVS | B27: koeficienty
A28: Prietok l/s | G28: BVS
D29: pH | E29: ostatné | G29: Ukazovateľ | I29: NEL
A30: do 5 vrátane | D30: 0.04 | E30: 0.08 | G30: Nameraná hodnota | H30: N | I30: 15 | J30: mg/l
A31: nad 5 do 10 vrátane | D31: 0.03 | E31: 0.07 | G31: Limitná hodnota | H31: L | I31: 10 | J31: mg/l
A32: nad 10 do 50 vrátane | D32: 0.02 | E32: 0.06 | G32: Prekročenie | I32: =I30-I31 -> 5 | J32: mg/l
A33: nad 50 | D33: 0.01 | E33: 0.05 | G33: Percento prekročenia | H33: P | I33: =((I30-I31)*100)/I31 -> 50 | J33: %
G35: Cena za odvádzanie a čistenie odpadovej vody verejnou kanalizáciou | H35: S | I35: 0.9216 | J35: za 1m3 bez DPH
G36: Denná spotreba vody za sledované obdobie | I36: 26.563 | J36: m3/deň | K36: =I36/24 -> 1.106791667 | L36: m3/hod | M36: =K36/36 -> 0.03074421296 | N36: l/s
G37: Koeficient znečistenia | I37: 0.08 | J37: podľa ukazovateľa z tabuľka a podľa Q
G38: Počet dní počas ktorých došlo k prekročeniu | H38: d | I38: 31 | J38: dní
G40: Úhrada= Cena * Množstvo OV * %prekročenia * Počet dní * Koeficient znečistenia
G41: Úhrada | H41: U | I41: =(I35*I36*I38*I37*I33) -> 3035.577139 | J41: BVS
G44: VVS
G45: Ukazovateľ | I45: NEL
G46: Nameraná hodnota | H46: N | I46: 15 | J46: mg/l
G47: Limitná hodnota | H47: L | I47: 10 | J47: mg/l
G48: Prekročenie | I48: =I46-I47 -> 5 | J48: mg/l
G49: Percento prekročenia | H49: P | I49: =((I46-I47)*100)/I47 -> 50 | J49: %
G51: Cena za odvádzanie a čistenie odpadovej vody verejnou kanalizáciou | H51: S | I51: 0.9216 | J51: za 1m3 bez DPH
G52: Denná spotreba vody za sledované obdobie | I52: 26.563 | J52: m3/deň | K52: =I52/24 -> 1.106791667 | L52: m3/hod | M52: =K52/36 -> 0.03074421296 | N52: l/s
G53: Percento zmluvnej pokuty | I53: 4 | J53: podľa ukazovateľa z tabuľka a podľa Q
G54: Počet dní počas ktorých došlo k prekročeniu | H54: d | I54: 31 | J54: dní
G58: Výška stočného | I58: =I52*I54*I51 -> 758.8942848
G62: Percento prekročenia | I62: =((((I46/I47)*100)-100)/2) -> 25 | J62: %
G66: Úhrada | H66: U | I66: =I62*(I58*I53)/100 -> 758.8942848 | J66: VVS
G69: Tatry
G70: Ukazovateľ | I70: NEL
G71: Nameraná hodnota | H71: N | I71: 15 | J71: mg/l
G72: Limitná hodnota | H72: L | I72: 10 | J72: mg/l
G73: Prekročenie | I73: =I71-I72 -> 5 | J73: mg/l
G74: Percento prekročenia | H74: P | I74: =((I71-I72)*100)/I72 -> 50 | J74: %
G76: Cena za odvádzanie a čistenie odpadovej vody verejnou kanalizáciou | H76: S | J76: za 1m3 bez DPH
G77: Denná spotreba vody za sledované obdobie | I77: 26.563 | J77: m3/deň | K77: =I77/24 -> 1.106791667 | L77: m3/hod | M77: =K77/36 -> 0.03074421296 | N77: l/s
G78: Koeficient znečistenia | J78: podľa ukazovateľa z tabuľka a podľa Q
G79: Počet dní počas ktorých došlo k prekročeniu | H79: d | J79: dní
G81: Sadzba za prekročenie bilančného limitu (Euro) | I81: 20 | J81: údaj z tabuľky
G82: Sadzba za ďalšie (začaté)% prekročenia bilančného limitu ( Euro) | I82: 0.33 | J82: údaj z tabuľky
G84: Úhrada | H84: U | I84: =I81+(I82*I74) -> 36.5 | J84: Tatry | K84: nemajú určené presne
G87: ZVS
G88: Ukazovateľ | I88: NEL
G89: Nameraná hodnota | H89: N | I89: 15 | J89: mg/l
G90: Limitná hodnota | H90: L | I90: 10 | J90: mg/l
G91: Prekročenie | I91: =I89-I90 -> 5 | J91: mg/l
G92: Percento prekročenia | H92: P | I92: =((I89-I90)*100)/I90 -> 50 | J92: %
G94: Cena za odvádzanie a čistenie odpadovej vody verejnou kanalizáciou | H94: S | I94: 0.9216 | J94: za 1m3 bez DPH
G95: Povolené denné množstvo OV asi zo Zmluvy | I95: 26.563 | J95: m3/deň | K95: =I95/24 -> 1.106791667 | L95: m3/hod | M95: =K95/36 -> 0.03074421296 | N95: l/s
G96: Koeficient znečistenia | I96: 0.08 | J96: podľa ukazovateľa z tabuľka a podľa Q
G97: Počet dní počas ktorých došlo k prekročeniu | H97: d | I97: 31 | J97: dní
G100: Úhrada= Cena * Množstvo OV * %prekročenia * Počet dní * Koeficient znečistenia
G101: Úhrada | H101: U | I101: =I94*I95*I96*I97*I92 -> 3035.577139 | J101: ZVS

Sheet MO počty (hidden)
A1: Modra | C1: Počet
A2: Zoznam ukazovateľov | B2: Skratka | C2: inšpekčný | D2: zberače | E2: DOOV | F2: spolu
A3: Rozpustené látky pri 105 °C | B3: RL-105 | C3: =SUMIFS(#REF!,#REF!,$A$1,#REF!,"M") ->  | D3: =SUMIFS(#REF!,#REF!,$A$1,#REF!,"M") ->  | E3: =SUMIFS(#REF!,#REF!,$A$1,#REF!,"M") ->  | F3: =C3+D3+E3 -> 
A4: Nerozpustené látky pri 105 °C | B4: NL-105 | C4: =SUMIFS(#REF!,#REF!,$A$1,#REF!,"M") ->  | D4: =SUMIFS(#REF!,#REF!,$A$1,#REF!,"M") ->  | E4: =SUMIFS(#REF!,#REF!,$A$1,#REF!,"M") ->  | F4: =C4+D4+E4 -> 
A5: Reakcia vody | B5: pH | C5: =SUMIFS(#REF!,#REF!,$A$1,#REF!,"M") ->  | D5: =SUMIFS(#REF!,#REF!,$A$1,#REF!,"M") ->  | E5: =SUMIFS(#REF!,#REF!,$A$1,#REF!,"M") -> 
A6: Chemická spotreba kyslíka dvojchromanom | B6: CHSK-Cr | C6: =SUMIFS(#REF!,#REF!,$A$1,#REF!,"M") ->  | D6: =SUMIFS(#REF!,#REF!,$A$1,#REF!,"M") ->  | E6: =SUMIFS(#REF!,#REF!,$A$1,#REF!,"M") -> 
A7: Povrchovo aktívne látky aniónové | B7: PAL-A | C7: =SUMIFS(#REF!,#REF!,$A$1,#REF!,"M") ->  | D7: =SUMIFS(#REF!,#REF!,$A$1,#REF!,"M") ->  | E7: =SUMIFS(#REF!,#REF!,$A$1,#REF!,"M") -> 
A8: Nepolárne extrahovateľné látky IČ | B8: NEL-IČ | C8: =SUMIFS(#REF!,#REF!,$A$1,#REF!,"M") ->  | D8: =SUMIFS(#REF!,#REF!,$A$1,#REF!,"M") ->  | E8: =SUMIFS(#REF!,#REF!,$A$1,#REF!,"M") -> 
A9: Biologická spotreba kyslíka - s potlačením nitrifikácie | B9: BSK5(ATM) | C9: =SUMIFS(#REF!,#REF!,$A$1,#REF!,"M") ->  | D9: =SUMIFS(#REF!,#REF!,$A$1,#REF!,"M") ->  | E9: =SUMIFS(#REF!,#REF!,$A$1,#REF!,"M") -> 
A10: Extrahovateľné látky IČ | B10: EL-IČ | C10: =SUMIFS(#REF!,#REF!,$A$1,#REF!,"M") ->  | D10: =SUMIFS(#REF!,#REF!,$A$1,#REF!,"M") ->  | E10: =SUMIFS(#REF!,#REF!,$A$1,#REF!,"M") -> 
A11: Celkový fosfor | B11: Pc | C11: =SUMIFS(#REF!,#REF!,$A$1,#REF!,"M") ->  | D11: =SUMIFS(#REF!,#REF!,$A$1,#REF!,"M") ->  | E11: =SUMIFS(#REF!,#REF!,$A$1,#REF!,"M") -> 
A12: Celkový dusík | B12: Nc | C12: =SUMIFS(#REF!,#REF!,$A$1,#REF!,"M") ->  | D12: =SUMIFS(#REF!,#REF!,$A$1,#REF!,"M") ->  | E12: =SUMIFS(#REF!,#REF!,$A$1,#REF!,"M") -> 
A13: Ortuť | B13: Hg | C13: =SUMIFS(#REF!,#REF!,$A$1,#REF!,"M") ->  | D13: =SUMIFS(#REF!,#REF!,$A$1,#REF!,"M") ->  | E13: =SUMIFS(#REF!,#REF!,$A$1,#REF!,"M") -> 
A14: Meď | B14: Cu | C14: =SUMIFS(#REF!,#REF!,$A$1,#REF!,"M") ->  | D14: =SUMIFS(#REF!,#REF!,$A$1,#REF!,"M") ->  | E14: =SUMIFS(#REF!,#REF!,$A$1,#REF!,"M") -> 
A15: Chróm VI | B15: Cr6+ | C15: =SUMIFS(#REF!,#REF!,$A$1,#REF!,"M") ->  | D15: =SUMIFS(#REF!,#REF!,$A$1,#REF!,"M") ->  | E15: =SUMIFS(#REF!,#REF!,$A$1,#REF!,"M") -> 
A16: Chróm celkový | B16: Crcelk. | C16: =SUMIFS(#REF!,#REF!,$A$1,#REF!,"M") ->  | D16: =SUMIFS(#REF!,#REF!,$A$1,#REF!,"M") ->  | E16: =SUMIFS(#REF!,#REF!,$A$1,#REF!,"M") -> 
A17: Olovo | B17: Pb | C17: =SUMIFS(#REF!,#REF!,$A$1,#REF!,"M") ->  | D17: =SUMIFS(#REF!,#REF!,$A$1,#REF!,"M") ->  | E17: =SUMIFS(#REF!,#REF!,$A$1,#REF!,"M") -> 
A18: Arzén | B18: As | C18: =SUMIFS(#REF!,#REF!,$A$1,#REF!,"M") ->  | D18: =SUMIFS(#REF!,#REF!,$A$1,#REF!,"M") ->  | E18: =SUMIFS(#REF!,#REF!,$A$1,#REF!,"M") -> 
A19: Kadmium | B19: Cd | C19: =SUMIFS(#REF!,#REF!,$A$1,#REF!,"M") ->  | D19: =SUMIFS(#REF!,#REF!,$A$1,#REF!,"M") ->  | E19: =SUMIFS(#REF!,#REF!,$A$1,#REF!,"M") -> 
A20: Nikel | B20: Ni | C20: =SUMIFS(#REF!,#REF!,$A$1,#REF!,"M") ->  | D20: =SUMIFS(#REF!,#REF!,$A$1,#REF!,"M") ->  | E20: =SUMIFS(#REF!,#REF!,$A$1,#REF!,"M") -> 
A21: Zinok | B21: Zn | C21: =SUMIFS(#REF!,#REF!,$A$1,#REF!,"M") ->  | D21: =SUMIFS(#REF!,#REF!,$A$1,#REF!,"M") ->  | E21: =SUMIFS(#REF!,#REF!,$A$1,#REF!,"M") -> 
A22: Kyanidy celkové | B22: CNcelk. | C22: =SUMIFS(#REF!,#REF!,$A$1,#REF!,"M") ->  | D22: =SUMIFS(#REF!,#REF!,$A$1,#REF!,"M") ->  | E22: =SUMIFS(#REF!,#REF!,$A$1,#REF!,"M") -> 
A23: Adsorbovateľné, organicky viazané halogény | B23: AOX | C23: =SUMIFS(#REF!,#REF!,$A$1,#REF!,"M") ->  | D23: =SUMIFS(#REF!,#REF!,$A$1,#REF!,"M") ->  | E23: =SUMIFS(#REF!,#REF!,$A$1,#REF!,"M") -> 
A24: Propylénglykol | B24: Propylénglykol | C24: =SUMIFS(#REF!,#REF!,$A$1,#REF!,"M") ->  | D24: =SUMIFS(#REF!,#REF!,$A$1,#REF!,"M") ->  | E24: =SUMIFS(#REF!,#REF!,$A$1,#REF!,"M") -> 
A25: Cín | B25: Sn | C25: =SUMIFS(#REF!,#REF!,$A$1,#REF!,"M") ->  | D25: =SUMIFS(#REF!,#REF!,$A$1,#REF!,"M") ->  | E25: =SUMIFS(#REF!,#REF!,$A$1,#REF!,"M") -> 
A26: Železo | B26: Fe | C26: =SUMIFS(#REF!,#REF!,$A$1,#REF!,"M") ->  | D26: =SUMIFS(#REF!,#REF!,$A$1,#REF!,"M") ->  | E26: =SUMIFS(#REF!,#REF!,$A$1,#REF!,"M") -> 
A27: Amoniakálny dusík | B27: N-NH4 | C27: =SUMIFS(#REF!,#REF!,$A$1,#REF!,"M") ->  | D27: =SUMIFS(#REF!,#REF!,$A$1,#REF!,"M") ->  | E27: =SUMIFS(#REF!,#REF!,$A$1,#REF!,"M") -> 
A28: Dusitanový dusík | B28: N-NO2 | C28: =SUMIFS(#REF!,#REF!,$A$1,#REF!,"M") ->  | D28: =SUMIFS(#REF!,#REF!,$A$1,#REF!,"M") ->  | E28: =SUMIFS(#REF!,#REF!,$A$1,#REF!,"M") -> 
A29: Dusičnanový dusík | B29: N-NO3 | C29: =SUMIFS(#REF!,#REF!,$A$1,#REF!,"M") ->  | D29: =SUMIFS(#REF!,#REF!,$A$1,#REF!,"M") ->  | E29: =SUMIFS(#REF!,#REF!,$A$1,#REF!,"M") -> 
A30: Extrahovateľné látky gravimetricky | B30: EL-grav | C30: =SUMIFS(#REF!,#REF!,$A$1,#REF!,"M") ->  | D30: =SUMIFS(#REF!,#REF!,$A$1,#REF!,"M") ->  | E30: =SUMIFS(#REF!,#REF!,$A$1,#REF!,"M") -> 
F31: 0
F32: 0
F33: 0
F34: 0
F35: 0
A36: =COUNTA(A3:A35) -> 28 | B36: =COUNTA(B3:B35) -> 28 | C36: =SUM(C3:C35) ->  | D36: =SUM(D3:D35) ->  | E36: =SUM(E3:E35) ->  | F36: =SUM(F3:F35) -> 
B38: Počet odberov | C38: Cena | D38: Počet ukazovateľov
A39: BVS inšpekčný monitoring | B39: =SUMIFS(#REF!,#REF!,$A$1,#REF!,"M") ->  | C39: =SUMIFS(#REF!,#REF!,$A$1,#REF!,"M") ->  | D39: =C36 -> 
A40: BVS zberače | B40: =SUMIFS(#REF!,#REF!,$A$1,#REF!,"M") ->  | C40: =SUMIFS(#REF!,#REF!,$A$1,#REF!,"M") ->  | D40: =D36 -> 
A41: Špecifické požiadavky DOOV | B41: =SUMIFS(#REF!,#REF!,$A$1,#REF!,"M") ->  | C41: =SUMIFS(#REF!,#REF!,$A$1,#REF!,"M") ->  | D41: =E36 -> 
B42: =SUM(B39:B41) ->  | C42: =SUM(C39:C41) -> 
A44: Producenti inšpekčný monitoring | B44: =SUMIFS(#REF!,#REF!,$A$1,#REF!,"M") ->  | C44: =SUMIFS(#REF!,#REF!,$A$1,#REF!,"M") -> 
B47: KBV | C47: BV | D47: 24Z
A48: BVS inšpekčný monitoring | B48: =SUMIFS(#REF!,#REF!,$B$47,#REF!,$A$1,#REF!,"M") ->  | C48: =SUMIFS(#REF!,#REF!,$C$47,#REF!,$A$1,#REF!,"M") ->  | D48: =SUMIFS(#REF!,#REF!,$D$47,#REF!,$A$1,#REF!,"M") -> 
A49: BVS zberače | B49: =SUMIFS(#REF!,#REF!,$B$47,#REF!,$A$1,#REF!,"M") ->  | C49: =SUMIFS(#REF!,#REF!,$C$47,#REF!,$A$1,#REF!,"M") ->  | D49: =SUMIFS(#REF!,#REF!,$D$47,#REF!,$A$1,#REF!,"M") -> 
A50: Špecifické požiadavky DOOV | B50: =SUMIFS(#REF!,#REF!,$B$47,#REF!,$A$1,#REF!,"M") ->  | C50: =SUMIFS(#REF!,#REF!,$C$47,#REF!,$A$1,#REF!,"M") ->  | D50: =SUMIFS(#REF!,#REF!,$D$47,#REF!,$A$1,#REF!,"M") -> 
B51: =SUM(B48:B50) ->  | C51: =SUM(C48:C50) ->  | E51: =SUM(B51:D51) -> 

Sheet SE počty (hidden)
A1: Senica | C1: Počet
A2: Zoznam ukazovateľov | B2: Skratka | C2: inšpekčný | D2: zberače | E2: DOOV | F2: spolu
A3: Rozpustené látky pri 105 °C | B3: RL-105 | C3: =SUMIFS(#REF!,#REF!,$A$1,#REF!,"M") ->  | D3: =SUMIFS(#REF!,#REF!,$A$1,#REF!,"M") ->  | E3: =SUMIFS(#REF!,#REF!,$A$1,#REF!,"M") ->  | F3: =C3+D3+E3 -> 
A4: Nerozpustené látky pri 105 °C | B4: NL-105 | C4: =SUMIFS(#REF!,#REF!,$A$1,#REF!,"M") ->  | D4: =SUMIFS(#REF!,#REF!,$A$1,#REF!,"M") ->  | E4: =SUMIFS(#REF!,#REF!,$A$1,#REF!,"M") ->  | F4: =C4+D4+E4 -> 
A5: Reakcia vody | B5: pH | C5: =SUMIFS(#REF!,#REF!,$A$1,#REF!,"M") ->  | D5: =SUMIFS(#REF!,#REF!,$A$1,#REF!,"M") ->  | E5: =SUMIFS(#REF!,#REF!,$A$1,#REF!,"M") -> 
A6: Chemická spotreba kyslíka dvojchromanom | B6: CHSK-Cr | C6: =SUMIFS(#REF!,#REF!,$A$1,#REF!,"M") ->  | D6: =SUMIFS(#REF!,#REF!,$A$1,#REF!,"M") ->  | E6: =SUMIFS(#REF!,#REF!,$A$1,#REF!,"M") -> 
A7: Povrchovo aktívne látky aniónové | B7: PAL-A | C7: =SUMIFS(#REF!,#REF!,$A$1,#REF!,"M") ->  | D7: =SUMIFS(#REF!,#REF!,$A$1,#REF!,"M") ->  | E7: =SUMIFS(#REF!,#REF!,$A$1,#REF!,"M") -> 
A8: Nepolárne extrahovateľné látky IČ | B8: NEL-IČ | C8: =SUMIFS(#REF!,#REF!,$A$1,#REF!,"M") ->  | D8: =SUMIFS(#REF!,#REF!,$A$1,#REF!,"M") ->  | E8: =SUMIFS(#REF!,#REF!,$A$1,#REF!,"M") -> 
A9: Biologická spotreba kyslíka - s potlačením nitrifikácie | B9: BSK5(ATM) | C9: =SUMIFS(#REF!,#REF!,$A$1,#REF!,"M") ->  | D9: =SUMIFS(#REF!,#REF!,$A$1,#REF!,"M") ->  | E9: =SUMIFS(#REF!,#REF!,$A$1,#REF!,"M") -> 
A10: Extrahovateľné látky IČ | B10: EL-IČ | C10: =SUMIFS(#REF!,#REF!,$A$1,#REF!,"M") ->  | D10: =SUMIFS(#REF!,#REF!,$A$1,#REF!,"M") ->  | E10: =SUMIFS(#REF!,#REF!,$A$1,#REF!,"M") -> 
A11: Celkový fosfor | B11: Pc | C11: =SUMIFS(#REF!,#REF!,$A$1,#REF!,"M") ->  | D11: =SUMIFS(#REF!,#REF!,$A$1,#REF!,"M") ->  | E11: =SUMIFS(#REF!,#REF!,$A$1,#REF!,"M") -> 
A12: Celkový dusík | B12: Nc | C12: =SUMIFS(#REF!,#REF!,$A$1,#REF!,"M") ->  | D12: =SUMIFS(#REF!,#REF!,$A$1,#REF!,"M") ->  | E12: =SUMIFS(#REF!,#REF!,$A$1,#REF!,"M") -> 
A13: Ortuť | B13: Hg | C13: =SUMIFS(#REF!,#REF!,$A$1,#REF!,"M") ->  | D13: =SUMIFS(#REF!,#REF!,$A$1,#REF!,"M") ->  | E13: =SUMIFS(#REF!,#REF!,$A$1,#REF!,"M") -> 
A14: Meď | B14: Cu | C14: =SUMIFS(#REF!,#REF!,$A$1,#REF!,"M") ->  | D14: =SUMIFS(#REF!,#REF!,$A$1,#REF!,"M") ->  | E14: =SUMIFS(#REF!,#REF!,$A$1,#REF!,"M") -> 
A15: Chróm VI | B15: Cr6+ | C15: =SUMIFS(#REF!,#REF!,$A$1,#REF!,"M") ->  | D15: =SUMIFS(#REF!,#REF!,$A$1,#REF!,"M") ->  | E15: =SUMIFS(#REF!,#REF!,$A$1,#REF!,"M") -> 
A16: Chróm celkový | B16: Crcelk. | C16: =SUMIFS(#REF!,#REF!,$A$1,#REF!,"M") ->  | D16: =SUMIFS(#REF!,#REF!,$A$1,#REF!,"M") ->  | E16: =SUMIFS(#REF!,#REF!,$A$1,#REF!,"M") -> 
A17: Olovo | B17: Pb | C17: =SUMIFS(#REF!,#REF!,$A$1,#REF!,"M") ->  | D17: =SUMIFS(#REF!,#REF!,$A$1,#REF!,"M") ->  | E17: =SUMIFS(#REF!,#REF!,$A$1,#REF!,"M") -> 
A18: Arzén | B18: As | C18: =SUMIFS(#REF!,#REF!,$A$1,#REF!,"M") ->  | D18: =SUMIFS(#REF!,#REF!,$A$1,#REF!,"M") ->  | E18: =SUMIFS(#REF!,#REF!,$A$1,#REF!,"M") -> 
A19: Kadmium | B19: Cd | C19: =SUMIFS(#REF!,#REF!,$A$1,#REF!,"M") ->  | D19: =SUMIFS(#REF!,#REF!,$A$1,#REF!,"M") ->  | E19: =SUMIFS(#REF!,#REF!,$A$1,#REF!,"M") -> 
A20: Nikel | B20: Ni | C20: =SUMIFS(#REF!,#REF!,$A$1,#REF!,"M") ->  | D20: =SUMIFS(#REF!,#REF!,$A$1,#REF!,"M") ->  | E20: =SUMIFS(#REF!,#REF!,$A$1,#REF!,"M") -> 
A21: Zinok | B21: Zn | C21: =SUMIFS(#REF!,#REF!,$A$1,#REF!,"M") ->  | D21: =SUMIFS(#REF!,#REF!,$A$1,#REF!,"M") ->  | E21: =SUMIFS(#REF!,#REF!,$A$1,#REF!,"M") -> 
A22: Kyanidy celkové | B22: CNcelk. | C22: =SUMIFS(#REF!,#REF!,$A$1,#REF!,"M") ->  | D22: =SUMIFS(#REF!,#REF!,$A$1,#REF!,"M") ->  | E22: =SUMIFS(#REF!,#REF!,$A$1,#REF!,"M") -> 
A23: Adsorbovateľné, organicky viazané halogény | B23: AOX | C23: =SUMIFS(#REF!,#REF!,$A$1,#REF!,"M") ->  | D23: =SUMIFS(#REF!,#REF!,$A$1,#REF!,"M") ->  | E23: =SUMIFS(#REF!,#REF!,$A$1,#REF!,"M") -> 
A24: Propylénglykol | B24: Propylénglykol | C24: =SUMIFS(#REF!,#REF!,$A$1,#REF!,"M") ->  | D24: =SUMIFS(#REF!,#REF!,$A$1,#REF!,"M") ->  | E24: =SUMIFS(#REF!,#REF!,$A$1,#REF!,"M") -> 
A25: Cín | B25: Sn | C25: =SUMIFS(#REF!,#REF!,$A$1,#REF!,"M") ->  | D25: =SUMIFS(#REF!,#REF!,$A$1,#REF!,"M") ->  | E25: =SUMIFS(#REF!,#REF!,$A$1,#REF!,"M") -> 
A26: Železo | B26: Fe | C26: =SUMIFS(#REF!,#REF!,$A$1,#REF!,"M") ->  | D26: =SUMIFS(#REF!,#REF!,$A$1,#REF!,"M") ->  | E26: =SUMIFS(#REF!,#REF!,$A$1,#REF!,"M") -> 
A27: Amoniakálny dusík | B27: N-NH4 | C27: =SUMIFS(#REF!,#REF!,$A$1,#REF!,"M") ->  | D27: =SUMIFS(#REF!,#REF!,$A$1,#REF!,"M") ->  | E27: =SUMIFS(#REF!,#REF!,$A$1,#REF!,"M") -> 
A28: Dusitanový dusík | B28: N-NO2 | C28: =SUMIFS(#REF!,#REF!,$A$1,#REF!,"M") ->  | D28: =SUMIFS(#REF!,#REF!,$A$1,#REF!,"M") ->  | E28: =SUMIFS(#REF!,#REF!,$A$1,#REF!,"M") -> 
A29: Dusičnanový dusík | B29: N-NO3 | C29: =SUMIFS(#REF!,#REF!,$A$1,#REF!,"M") ->  | D29: =SUMIFS(#REF!,#REF!,$A$1,#REF!,"M") ->  | E29: =SUMIFS(#REF!,#REF!,$A$1,#REF!,"M") -> 
A30: Extrahovateľné látky gravimetricky | B30: EL-grav | C30: =SUMIFS(#REF!,#REF!,$A$1,#REF!,"M") ->  | D30: =SUMIFS(#REF!,#REF!,$A$1,#REF!,"M") ->  | E30: =SUMIFS(#REF!,#REF!,$A$1,#REF!,"M") -> 
F31: 0
F32: 0
F33: 0
F34: 0
F35: 0
A36: =COUNTA(A3:A35) -> 28 | B36: =COUNTA(B3:B35) -> 28 | C36: =SUM(C3:C35) ->  | D36: =SUM(D3:D35) ->  | E36: =SUM(E3:E35) ->  | F36: =SUM(F3:F35) -> 
B38: Počet odberov | C38: Cena | D38: Počet ukazovateľov
A39: BVS inšpekčný monitoring | B39: =SUMIFS(#REF!,#REF!,$A$1,#REF!,"M") ->  | C39: =SUMIFS(#REF!,#REF!,$A$1,#REF!,"M") ->  | D39: =C36 -> 
A40: BVS zberače | B40: =SUMIFS(#REF!,#REF!,$A$1,#REF!,"M") ->  | C40: =SUMIFS(#REF!,#REF!,$A$1,#REF!,"M") ->  | D40: =D36 -> 
A41: Špecifické požiadavky DOOV | B41: =SUMIFS(#REF!,#REF!,$A$1,#REF!,"M") ->  | C41: =SUMIFS(#REF!,#REF!,$A$1,#REF!,"M") ->  | D41: =E36 -> 
B42: =SUM(B39:B41) ->  | C42: =SUM(C39:C41) -> 
A44: Producenti inšpekčný monitoring | B44: =SUMIFS(#REF!,#REF!,$A$1,#REF!,"M") ->  | C44: =SUMIFS(#REF!,#REF!,$A$1,#REF!,"M") -> 
B47: KBV | C47: BV | D47: 24Z
A48: BVS inšpekčný monitoring | B48: =SUMIFS(#REF!,#REF!,$B$47,#REF!,$A$1,#REF!,"M") ->  | C48: =SUMIFS(#REF!,#REF!,$C$47,#REF!,$A$1,#REF!,"M") ->  | D48: =SUMIFS(#REF!,#REF!,$D$47,#REF!,$A$1,#REF!,"M") -> 
A49: BVS zberače | B49: =SUMIFS(#REF!,#REF!,$B$47,#REF!,$A$1,#REF!,"M") ->  | C49: =SUMIFS(#REF!,#REF!,$C$47,#REF!,$A$1,#REF!,"M") ->  | D49: =SUMIFS(#REF!,#REF!,$D$47,#REF!,$A$1,#REF!,"M") -> 
A50: Špecifické požiadavky DOOV | B50: =SUMIFS(#REF!,#REF!,$B$47,#REF!,$A$1,#REF!,"M") ->  | C50: =SUMIFS(#REF!,#REF!,$C$47,#REF!,$A$1,#REF!,"M") ->  | D50: =SUMIFS(#REF!,#REF!,$D$47,#REF!,$A$1,#REF!,"M") -> 
B51: =SUM(B48:B50) ->  | C51: =SUM(C48:C50) ->  | E51: =SUM(B51:D51) -> 

Sheet Hárok2 (hidden)
B1: Podtatranská
B3: Počet pracovných dní v týždni | D3: 5 | E3: v roku | F3: =D3*52 -> 260
B5: Odberateľ môže do verejnej kanalizácie vypúšťať odpadové vody v nasledujúcom maximálnom množstve:
B7: a) komunálne OV | C7: Prietok | D7: 1056 | E7: m3/rok | F7: =D7/F3 -> 4.061538462 | G7: m3/deň | H7: =F7/24 -> 0.1692307692 | I7: m3/hod | J7: =(H7/3600)*1000 -> 0.04700854701 | K7: lit/sek
C8: Prietok | D8: 0.04701 | E8: lit/sek | F8: =(D8*3600)/1000 -> 0.169236 | G8: m3/hod | H8: =F8*24 -> 4.061664 | I8: m3/deň | J8: =H8*F3 -> 1056.03264 | K8: m3/rok
B10: Ukazovateľ znečistenia | C10: Koncentračný limit | E10: Bilančný limit
C11: Priemerný (mg/l) | D11: Max. (mg/l) | E11: kg/deň | F11: ton/rok
B12: BSK5 | C12: 200 | D12: 400 | E12: =C12*$F$7*(1/1000) -> 0.8123076923 | F12: =C12*$D$7*(1/1000000) -> 0.2112
B13: CHSKCr | C13: 300 | D13: 600 | E13: =C13*$F$7*(1/1000) -> 1.218461538 | F13: =C13*$D$7*(1/1000000) -> 0.3168
B14: NL | C14: 100 | D14: 150 | E14: 0.4061538462 | F14: 0.1056
B15: RL | C15: 600 | D15: 900 | E15: 2.436923077 | F15: 0.6336
B16: Extrahovateľné látky | C16: 40 | D16: 55 | E16: 0.1624615385 | F16: 0.04224
B17: PAL- A | C17: 7 | D17: 10 | E17: 0.02843076923 | F17: 0.007392
B19: Výpočet prekročenia bilančných limitov vykoná dodávateľ
B30: Ukazovateľ | C30: BSK5
B31: Priemerná koncentrácia | C31: 200 | D31: mg/l | E31: priemerná ročná koncentrácia
B32: Množstvo OV | C32: 1056 | D32: m3/rok | E32: za rok
B34: Ročná bilancia | C34: =(C31*C32)*(1/1000000) -> 0.2112 | D34: ton/rok

Sheet Fosfor (hidden)
B1: Rajo | X1: 08.01.2014 | Y1: 8.83 | AA1: 9.53 | AC1: =IF(ISBLANK(AA1)," ",Y1-AA1) -> -0.7
N2: Prietok OV, ziastené za rok (l/s) | O2: Sadzba za prekročenie bilančného limitu (Euro) | P2: Sadzba za ďalšie % prekročenia bilančného limitu ( Euro) | X2: 13.01.2014 | Y2: 6.19 | AA2: 7.65 | AC2: =IF(ISBLANK(AA2)," ",Y2-AA2) -> -1.46
B3: Počet pracovných dní v týždni | E3: v roku | F3: 365 | N3: Q <=0,2 | O3: 53 | P3: (+) 2,68 Euro za každé % prekročenia | X3: 20.01.2014 | Y3: 8.97 | AA3: 6.9 | AC3: 2.07
N4: 0,2 <Q <=0,5 | O4: 106 | P4: (+) 2,68 Euro za každé % prekročenia | X4: 27.01.2014 | Y4: 10.2 | AA4: 12.1 | AC4: -1.9
B5: Odberateľ môže do verejnej kanalizácie vypúšťať odpadové vody v nasledujúcom maximálnom množstve: | N5: 0,5 <Q <=1,0 | O5: 159 | P5: (+) 2,68 Euro za každé % prekročenia | X5: 03.02.2014 | Y5: 13.7 | AA5: 14 | AC5: -0.3
D6: zmluva | N6: 1,0 <Q <=2,0 | O6: 212 | P6: (+) 2,68 Euro za každé % prekročenia | X6: 12.02.2014 | Y6: 9.4 | AA6: 9.25 | AC6: 0.15
B7: a) komunálne OV | C7: Prietok | D7: 578843 | E7: m3/rok | F7: =D7/F3 -> 1585.871233 | G7: m3/deň | H7: =F7/24 -> 66.07796804 | I7: m3/hod | J7: =(H7/3600)*1000 -> 18.35499112 | K7: lit/sek | N7: 2,0 <Q <=5,0 | O7: 265 | P7: (+) 2,68 Euro za každé % prekročenia | X7: 17.02.2014 | Y7: 6.49 | AA7: 6.55 | AC7: -0.06
C8: Prietok | D8: 18.355 | E8: lit/sek | F8: =(D8*3600)/1000 -> 66.078 | G8: m3/hod | H8: =F8*24 -> 1585.872 | I8: m3/deň | J8: =H8*F3 -> 578843.28 | K8: m3/rok | N8: 5,0 <Q <=10,0 | O8: 664 | P8: (+) 6,64 Euro za každé % prekročenia | X8: 24.02.2014 | Y8: 10.6 | AA8: 10.9 | AC8: -0.3
N9: 10,0 <Q | O9: 1328 | P9: (+) 13,28 Euro za každé % prekročenia | X9: 03.03.2014 | Y9: 15.1 | AA9: 15.5 | AC9: -0.4
B10: Ukazovateľ znečistenia | C10: Koncentračný limit | E10: Bilančný limit | X10: 10.03.2014 | Y10: 27.2 | AA10: 13 | AC10: 14.2
C11: Priemerný (mg/l) | D11: Max. (mg/l) | E11: kg/deň | F11: ton/rok | X11: 17.03.2014 | Y11: 9.33 | AA11: 10 | AC11: -0.67
B12: Pc | C12: 16.1 | D12: 50 | E12: =C12*$F$7*(1/1000) -> 25.53252685 | F12: =C12*$D$7*(1/1000000) -> 9.3193723 | X12: 24.03.2014 | Y12: 15.3 | AA12: 15.5 | AC12: -0.2
B13: Pc | C13: 15 | D13: 50 | E13: =C13*$F$7*(1/1000) -> 23.78806849 | F13: =C13*$D$7*(1/1000000) -> 8.682645 | X13: 02.04.2014 | Y13: 19.7 | AA13: 22.6 | AC13: -2.9
B14: Pc | C14: 7.5 | D14: 15 | E14: 11.89403425 | F14: 4.3413225 | X14: 09.04.2014 | Y14: 37.7 | AA14: 29.7 | AC14: 8
B15: RL | C15: 200 | D15: 900 | E15: 317.1742466 | F15: 115.7686 | X15: 14.04.2014 | Y15: 14 | AA15: 14.3 | AC15: -0.3
B16: Extrahovateľné látky | D16: 55 | E16: 0 | F16: 0 | X16: 21.04.2014 | Y16: 10.2 | AA16: 10 | AC16: 0.2
B17: PAL- A | D17: 10 | E17: 0 | F17: 0 | X17: 28.04.2014 | Y17: 10.5 | AA17: 7.7 | AC17: 2.8
X18: 05.05.2014 | Y18: 19.8 | AA18: 21.3 | AC18: -1.5
B19: Výpočet prekročenia bilančných limitov vykoná dodávateľ | X19: 14.05.2014 | Y19: 22.9 | AA19: 25.8 | AC19: -2.9
X20: 19.05.2014 | Y20: 24.6 | AA20: 25.8 | AC20: -1.2
X21: 27.05.2014 | Y21: 16.8 | AA21: 18.3 | AC21: -1.5
X22: 02.06.2014 | Y22: 22.8 | AA22: 28 | AC22: -5.2
X23: 11.06.2014 | Y23: 12.7 | AA23: 14.7 | AC23: -2
X24: 18.06.2014 | Y24: 7.57 | AA24: 7.5 | AC24: 0.07
X25: 23.06.2014 | Y25: 10.8 | AA25: 11.6 | AC25: -0.8
X26: 02.07.2014 | Y26: 7 | AA26: 8.8 | AC26: -1.8
B27: Vlož Bilančný limit pre sledovaný ukazovateľ | E27: 8.68 | F27: ton/rok | X27: 07.07.2014 | Y27: 14.5 | AA27: 12.2 | AC27: 2.3
X28: 14.07.2014 | Y28: 13.9 | AA28: 15 | AC28: -1.1
B29: Namerané dáta | X29: 21.07.2014 | Y29: 8.09 | AA29: 10.9 | AC29: -2.81
B30: Ukazovateľ | C30: Pc | X30: 28.07.2014 | Y30: 9.79 | AA30: 12.6 | AC30: -2.81
B31: Priemerná koncentrácia | C31: 16.1 | D31: mg/l | E31: priemerná ročná koncentrácia | X31: 05.08.2014 | Y31: 8.26 | AA31: 9.1 | AC31: -0.84
B32: Množstvo OV | C32: 578856 | D32: m3/rok | E32: za rok | X32: 12.08.2014 | Y32: 5.14 | AA32: 6 | AC32: -0.86
X33: 19.08.2014 | Y33: 11.2 | AA33: 13.4 | AC33: -2.2
B34: Ročná bilancia | C34: =(C31*C32)*(1/1000000) -> 9.3195816 | D34: ton/rok | X34: 25.08.2014 | Y34: 13.1 | AA34: 18.1 | AC34: -5
X35: 03.09.2014 | Y35: 21.7 | AA35: 24.2 | AC35: -2.5
B36: Výpočet úhrady za prekročenie bilančného limitu | E36: =IF($C$34<E27,"Nepočí ta sa úhrada za prekročenie bilančného limitu","Počíta sa úhrada za prekročenie bilančného limitu") -> Počíta sa úhrada za prekročenie bilančného limitu | X36: 09.09.2014 | Y36: 26.1 | AA36: 29.7 | AC36: -3.6
X37: 15.09.2014 | Y37: 19.1 | AA37: 21.8 | AC37: -2.7
B38: Prekročenie bilančného limitu | E38: =IF(C34>E27,ABS(C34-E27), " ") -> 0.6395816 | F38: ton/rok
B39: Percento prekročenia bilančného limitu | E39: =(100*E38)/E27 -> 7.368451613 | F39: % | X39: 23.09.2014 | Y39: 17.2 | AA39: 22.3 | AC39: -5.1
X40: 29.09.2014 | Y40: 25.1 | AA40: 29.7 | AC40: -4.6
B42: Prietok | C42: 18.35 | D42: l/s | X42: 08.10.2014 | Y42: 10.9 | AA42: 12 | AC42: -1.1
B43: Sadzba za prekročenie bilančného limitu (Euro) | C43: 1328 | D43: údaj z tabuľky | X43: 15.10.2014 | Y43: 16.3 | AA43: 18.9 | AC43: -2.6
B44: Sadzba za ďalšie (začaté)% prekročenia bilančného limitu ( Euro) | C44: 13.28 | D44: údaj z tabuľky | X44: 22.10.2014 | Y44: 22.3 | AA44: 27.5 | AC44: -5.2
X45: 27.10.2014 | Y45: 8.84 | AA45: 9.5 | AC45: -0.66
B46: Úhrada za prekročenie bilančného limiitu | E46: =$C$43+($C$44*$E$39) -> 1425.853037 | X46: 03.11.2014 | Y46: 20.9
X47: 11.11.2014 | Y47: 15.3
X48: 17.11.2014 | Y48: 12
B49: BVS
B50: Dáta zo zmluvy | X50: Priemer | Y50: =AVERAGE(Y1:Y48) -> 14.74130435 | Z50: =SUM(Y1:Y48) -> 678.1 | AA50: =AVERAGE(AA1:AA48) -> 15.57860465
B51: Ukazovateľ | C51: Pc | Z51: =COUNT(Y1:Y48) -> 46
B52: Bilančný limit | C52: 8.68 | D52: t/rok | E52: limit | Z52: =Z50/Z51 -> 14.74130435
Y53: spolu | Z53: =AVERAGE(Y1:AA48) -> 15.1458427
B54: Dáta za kalendárny rok
B55: Ukazovateľ | C55: Pc
B56: Nameraná koncentrácia | C56: 25 | D56: mg/l | E56: =C56*C57*(1/1000000) -> 14.4714 | F56: ton/rok
B57: Množstvo OV | C57: 578856 | D57: m3/rok | E57: =C57/F3 -> 1585.906849 | F57: m3/deň | G57: =E57/24 -> 66.07945205 | H57: m3/hod | I57: =(G57/3600)*1000 -> 18.35540335 | J57: lit/sek
B59: Prekročenie bilančný limit | C59: =(E56-C52) -> 5.7914 | D59: t/rok | E59: =(100*C59)/C52 -> 66.72119816 | F59: %
B61: Koeficient ako % | C61: 0.04 | D61: na základe prietoku zo zmluvy
B62: Stočné | C62: 0.9216 | D62: Euro/m3
B63: Počet dní prekročenia | C63: 365
B65: Úhrada koncentrácia | C65: =C61*E57*C61*E59*C63 -> 61795.14541

Sheet ZVS (hidden)
B2: Producent môže vypúšťať OV do VK v maximálnom množstve podľa jednotlivých zdrojov:
B3: Označenie zdroja | D3: m3/rok | E3: m3/deň | F3: l/s
B4: Verejný vodovod | C4: áno | D4: 300 | E4: =D4/365 -> 0.8219178082 | F4: =(E4/(24*60*60))*1000 -> 0.009512937595 | G4: ide do výpočtu bilančných limitov
B5: Iné (vlastné )zdroje vody | C5: nie | E5: =D5/365 -> 0 | F5: =(E5/(24*60*60))*1000 -> 0
B6: Vody z povrchového odtoku | C6: áno | D6: 1733 | E6: 4.747945205 | F6: 0.05495306951
B7: Celkom | D7: =SUM(D4:D6) -> 2033 | E7: =SUM(E4:E6) -> 5.569863014 | F7: 0.0644660071
B9: Limitné hodnoty znečistenia vo vypúšťaných OV:
B10: Ukazovateľ | C10: od | D10: do
B11: pH | C11: 6 | D11: 9
C12: mg/l | D12: max. mg/l | E12: g/s | F12: kg/deň | G12: t/rok
B13: CHSKCr | C13: 0 | D13: 800 | E13: =$F$4*(D13/1000) -> 0.007610350076 | F13: =$E$4*D13*(1/1000) -> 0.6575342466 | G13: =$D$4*D13*(1/1000000) -> 0.24
B14: Nerozpustné látky 105 | C14: 0 | D14: 500 | E14: =$F$4*(D14/1000) -> 0.004756468798 | F14: =$E$4*D14*(1/1000) -> 0.4109589041 | G14: =$D$4*D14*(1/1000000) -> 0.15
B15: Rozpustné látky 550 | C15: 0 | D15: 1200 | E15: 0.01141552511 | F15: 0.9863013699 | G15: 0.36
B16: N-NH4 | C16: 0 | D16: 80 | E16: 0.0007610350076 | F16: 0.06575342466 | G16: 0.024
B17: P celk | C17: 0 | D17: 15 | E17: 0.0001426940639 | F17: 0.01232876712 | G17: 0.0045
B18: Tuky | C18: 0 | D18: 60 | E18: 0.0005707762557 | F18: 0.04931506849 | G18: 0.018
B19: NEL | C19: 0 | D19: 10 | E19: 9.512937595e-05 | F19: 0.008219178082 | G19: 0.003
B26: ZVS | C26: koeficienty
B27: Prietok l/s
E28: pH | F28: ostatné
B29: do 5 vrátane | E29: 0.04 | F29: 0.08
B30: nad 5 do 10 vrátane | E30: 0.03 | F30: 0.07
B31: nad 10 do 50 vrátane | E31: 0.02 | F31: 0.06
B32: nad 50 | E32: 0.01 | F32: 0.05
B39: Dáta zo Zmluvy
B40: Množstvo OV | C40: 0.82 | D40: kg/deň | E40: zo Zmluvy
B41: Ukazovateľ | C41: CHSKCr
B42: Max. Limitná koncentrácia | C42: 800 | D42: mg/l | E42: limit
B43: Bilančný limit | C43: 0.24 | D43: t/rok | E43: limit
B45: Namerané dáta
B46: Ukazovateľ | C46: CHSKCr
B47: Nameraná koncentrácia | C47: 950 | D47: mg/l | E47: =C47*D4*(1/1000000) -> 0.285 | F47: ton/rok
B49: Prekročenie konc. Limit | C49: =IF(C47>C42,ABS(C47-C42), " ") -> 150 | D49: mg/l | E49: =(100*C49)/C42 -> 18.75 | F49: %
B50: Prekročenie bilančný limit | C50: =IF(E47>C43,ABS(E47-C43), " ") -> 0.045 | D50: t/rok | E50: =(100*C50)/C43 -> 18.75 | F50: %
B52: Koeficient ako % | C52: 0.08 | D52: na základe prietoku zo zmluvy
B53: Stočné | C53: 0.9216 | D53: Euro/m3
B54: Počet dní prekročenia | C54: 30
B56: Úhrada koncentrácia | C56: =C53*C40*C52*E49*C54 -> 34.00704 | E56: ZVS má rovnaký spôsob výpočtu úhrady za zvýšený koncentračný limit
B57: Úhrada bilancia | C57: =C53*C40*C52*E50*C54 -> 34.00704

Sheet Tatry (hidden)
B1: Rajo | X1: 08.01.2014 | Y1: 8.83 | AA1: 9.53
N2: Prietok OV, zistené za rok (l/s) | O2: Sadzba za prekročenie bilančného limitu (Euro) | P2: Sadzba za ďalšie % prekročenia bilančného limitu ( Euro) | X2: 13.01.2014 | Y2: 6.19 | AA2: 7.65
B3: Počet pracovných dní v týždni | D3: 5 | E3: v roku | F3: =D3*52 -> 260 | N3: Q <=0,2 | O3: 53 | P3: (+) 2,68 Euro za každé % prekročenia | X3: 20.01.2014 | Y3: 8.97 | AA3: 6.9
N4: 0,2 <Q <=0,5 | O4: 106 | P4: (+) 2,68 Euro za každé % prekročenia | X4: 27.01.2014 | Y4: 10.2 | AA4: 12.1
B5: Odberateľ môže do verejnej kanalizácie vypúšťať odpadové vody v nasledujúcom maximálnom množstve: | N5: 0,5 <Q <=1,0 | O5: 159 | P5: (+) 2,68 Euro za každé % prekročenia | X5: 03.02.2014 | Y5: 13.7 | AA5: 14
D6: zmluva | N6: 1,0 <Q <=2,0 | O6: 212 | P6: (+) 2,68 Euro za každé % prekročenia | X6: 12.02.2014 | Y6: 94 | AA6: 9.25
B7: a) komunálne OV | C7: Prietok | D7: 1056 | E7: m3/rok | F7: =D7/F3 -> 4.061538462 | G7: m3/deň | H7: =F7/24 -> 0.1692307692 | I7: m3/hod | J7: =(H7/3600)*1000 -> 0.04700854701 | K7: lit/sek | N7: 2,0 <Q <=5,0 | O7: 265 | P7: (+) 2,68 Euro za každé % prekročenia | X7: 17.02.2014 | Y7: 6.49 | AA7: 6.55
C8: Prietok | D8: 0.04701 | E8: lit/sek | F8: =(D8*3600)/1000 -> 0.169236 | G8: m3/hod | H8: =F8*24 -> 4.061664 | I8: m3/deň | J8: =H8*F3 -> 1056.03264 | K8: m3/rok | N8: 5,0 <Q <=10,0 | O8: 664 | P8: (+) 6,64 Euro za každé % prekročenia | X8: 24.02.2014 | Y8: 10.6 | AA8: 10.9
N9: 10,0 <Q | O9: 1328 | P9: (+) 13,28 Euro za každé % prekročenia | X9: 03.03.2014 | Y9: 15.1 | AA9: 15.5
B10: Ukazovateľ znečistenia | C10: Koncentračný limit | E10: Bilančný limit | X10: 10.03.2014 | Y10: 27.2 | AA10: 13
C11: Priemerný (mg/l) | D11: Max. (mg/l) | E11: kg/deň | F11: ton/rok | N11: Prietok OV, zistené za rok (l/s) | O11: Sadzba za prekročenie koncentračného limitu (Euro) | P11: Sadzba za ďalšie % prekročenia koncentračnéholimitu ( Euro) | X11: 17.03.2014 | Y11: 9.33 | AA11: 10
B12: BSK5 | C12: 200 | D12: 400 | E12: =C12*$F$7*(1/1000) -> 0.8123076923 | F12: =C12*$D$7*(1/1000000) -> 0.2112 | N12: Q <=0,2 | O12: 20 | P12: (+) 0,33Euro za každé % prekročenia | X12: 24.03.2014 | Y12: 15.3 | AA12: 15.5
B13: CHSK | C13: 300 | D13: 600 | E13: =C13*$F$7*(1/1000) -> 1.218461538 | F13: =C13*$D$7*(1/1000000) -> 0.3168 | N13: 0,2 <Q <=0,5 | O13: 40 | P13: (+) 0,83Euro za každé % prekročenia | X13: 02.04.2014 | Y13: 19.7 | AA13: 22.6
B14: Nerozpustené látky | C14: 100 | D14: 150 | E14: 0.4061538462 | F14: 0.1056 | N14: 0,5 <Q <=1,0 | O14: 65 | P14: (+) 3,33 Euro za každé % prekročenia | X14: 09.04.2014 | Y14: 37.7 | AA14: 29.7
B15: RL | C15: 600 | D15: 900 | E15: 2.436923077 | F15: 0.6336 | N15: 1,0 <Q <=2,0 | O15: 100 | P15: (+) 3,33 Euro za každé % prekročenia | X15: 14.04.2014 | Y15: 14 | AA15: 14.3
B16: Extrahovateľné látky | C16: 40 | D16: 55 | E16: 0.1624615385 | F16: 0.04224 | N16: 2,0 <Q <=5,0 | O16: 165 | P16: (+) 3,33 Euro za každé % prekročenia | X16: 21.04.2014 | Y16: 10.2 | AA16: 10
B17: PAL- A | C17: 7 | D17: 10 | E17: 0.02843076923 | F17: 0.007392 | N17: 5,0 <Q <=10,0 | O17: 330 | P17: (+) 6,66 Euro za každé % prekročenia | X17: 28.04.2014 | Y17: 10.5 | AA17: 7.7
N18: 10,0 <Q | O18: 500 | P18: (+) 11,66 Euro za každé % prekročenia | X18: 05.05.2014 | Y18: 19.8 | AA18: 21.3
B19: Výpočet prekročenia bilančných limitov vykoná dodávateľ | X19: 14.05.2014 | Y19: 22.9 | AA19: 25.8
X20: 19.05.2014 | Y20: 24.6 | AA20: 25.8
X21: 27.05.2014 | Y21: 16.8 | AA21: 18.3
X22: 02.06.2014 | Y22: 22.8 | AA22: 28
X23: 11.06.2014 | Y23: 12.7 | AA23: 14.7
X24: 18.06.2014 | Y24: 7.57 | AA24: 7.5
X25: 23.06.2014 | Y25: 10.8 | AA25: 11.6
B26: Bilančný limit | X26: 02.07.2014 | Y26: 7 | AA26: 8.8
B27: Vlož Bilančný limit pre sledovaný ukazovateľ | E27: 0.2112 | F27: ton/rok | X27: 07.07.2014 | Y27: 14.5 | AA27: 12.2
X28: 14.07.2014 | Y28: 13.9 | AA28: 15
B29: Namerané dáta | X29: 21.07.2014 | Y29: 8.09 | AA29: 10.9
B30: Ukazovateľ | C30: BSK5 | X30: 28.07.2014 | Y30: 9.79 | AA30: 12.6
B31: Priemerná koncentrácia | C31: 250 | D31: mg/l | E31: priemerná ročná koncentrácia | X31: 05.08.2014 | Y31: 8.26 | AA31: 9.1
B32: Množstvo OV | C32: 1000 | D32: m3/rok | E32: za rok | F32: =C32/F3 -> 3.846153846 | G32: m3/deň | H32: =F32/24 -> 0.1602564103 | I32: m3/hod | J32: =(H32/3600)*1000 -> 0.04451566952 | K32: lit/sek | X32: 12.08.2014 | Y32: 5.14 | AA32: 6
X33: 19.08.2014 | Y33: 11.2 | AA33: 13.4
B34: Ročná bilancia | C34: =(C31*C32)*(1/1000000) -> 0.25 | D34: ton/rok | X34: 25.08.2014 | Y34: 13.1 | AA34: 18.1
X35: 03.09.2014 | Y35: 21.7 | AA35: 24.2
B36: Výpočet úhrady za prekročenie bilančného limitu | E36: =IF($C$34<E27,"Nepočí ta sa úhrada za prekročenie bilančného limitu","Počíta sa úhrada za prekročenie bilančného limitu") -> Počíta sa úhrada za prekročenie bilančného limitu | X36: 09.09.2014 | Y36: 26.1 | AA36: 29.7
X37: 15.09.2014 | Y37: 19.1 | AA37: 21.8
B38: Prekročenie bilančného limitu | E38: =IF(C34>E27,ABS(C34-E27), " ") -> 0.0388 | F38: ton/rok
B39: Percento prekročenia bilančného limitu | E39: =(100*E38)/E27 -> 18.37121212 | F39: % | X39: 23.09.2014 | Y39: 17.2 | AA39: 22.3
X40: 29.09.2014 | Y40: 25.1 | AA40: 29.7
B42: Prietok | C42: 0.0445 | D42: l/s | X42: 08.10.2014 | Y42: 10.9 | AA42: 12
B43: Sadzba za prekročenie bilančného limitu (Euro) | C43: 53 | D43: údaj z tabuľky | X43: 15.10.2014 | Y43: 16.3 | AA43: 18.9
B44: Sadzba za ďalšie (začaté)% prekročenia bilančného limitu ( Euro) | C44: 2.68 | D44: údaj z tabuľky | X44: 22.10.2014 | Y44: 22.3 | AA44: 27.5
X45: 27.10.2014 | Y45: 8.84 | AA45: 9.5
B46: Úhrada za prekročenie bilančného limiitu | E46: =$C$43+($C$44*$E$39) -> 102.2348485 | X46: 03.11.2014 | Y46: 20.9
X47: 11.11.2014 | Y47: 15.3
X48: 17.11.2014 | Y48: 12
B49: Koncentračný limit
B50: Vlož koncentračný limit pre sledovaný ukazovateľ | E50: 600 | F50: mg/l | X50: Priemer | Y50: =AVERAGE(Y1:Y48) -> 16.58043478 | Z50: =SUM(Y1:Y48) -> 762.7 | AA50: =AVERAGE(AA1:AA48) -> 15.57860465
Z51: =COUNT(Y1:Y48) -> 46
B52: Namerané dáta | Z52: =Z50/Z51 -> 16.58043478
B53: Ukazovateľ | C53: CHSK
B54: Priemerná koncentrácia | C54: 650 | D54: mg/l | E54: priemerná ročná koncentrácia
B55: Množstvo OV | D55: m3/rok | E55: za rok
B58: Výpočet úhrady za prekročenie koncentračného limitu | E58: =IF($C$54<E50,"Nepočí ta sa úhrada za prekročenie bilančného limitu","Počíta sa úhrada za prekročenie bilančného limitu") -> Počíta sa úhrada za prekročenie bilančného limitu
B60: Prekročenie koncentrančného limitu | E60: =IF(C54>E50,ABS(C54-E50), " ") -> 50
B61: Percento prekročenia bilančného limitu | E61: =(100*E60)/E50 -> 8.333333333 | F61: %
B64: Prietok | C64: 0.04701 | D64: l/s
B65: Sadzba za prekročenie bilančného limitu (Euro) | C65: 20 | D65: údaj z tabuľky
B66: Sadzba za ďalšie (začaté)% prekročenia bilančného limitu ( Euro) | C66: 0.33 | D66: údaj z tabuľky
B68: Úhrada za prekročenie bilančného limiitu | E68: =$C$65+($C$66*$E$61) -> 22.75

Sheet BVS bilancia (hidden)
B1: BVS | C1: MVN | X1: 08.01.2014 | Y1: 8.83 | AA1: 9.53
N2: Prietok OV, zistené za rok (l/s) | O2: Sadzba za prekročenie bilančného limitu (Euro) | P2: Sadzba za ďalšie % prekročenia bilančného limitu ( Euro) | X2: 13.01.2014 | Y2: 6.19 | AA2: 7.65
B3: Počet pracovných dní v týždni | D3: 5 | E3: v roku | F3: 365 | N3: Q <=0,2 | O3: 53 | P3: (+) 2,68 Euro za každé % prekročenia | X3: 20.01.2014 | Y3: 8.97 | AA3: 6.9
N4: 0,2 <Q <=0,5 | O4: 106 | P4: (+) 2,68 Euro za každé % prekročenia | X4: 27.01.2014 | Y4: 10.2 | AA4: 12.1
B5: Odberateľ môže do verejnej kanalizácie vypúšťať odpadové vody v nasledujúcom maximálnom množstve: | N5: 0,5 <Q <=1,0 | O5: 159 | P5: (+) 2,68 Euro za každé % prekročenia | X5: 03.02.2014 | Y5: 13.7 | AA5: 14
D6: zmluva | N6: 1,0 <Q <=2,0 | O6: 212 | P6: (+) 2,68 Euro za každé % prekročenia | X6: 12.02.2014 | Y6: 94 | AA6: 9.25
B7: a) komunálne OV | C7: Prietok | D7: 4500 | E7: m3/rok | F7: =D7/F3 -> 12.32876712 | G7: m3/deň | H7: =F7/24 -> 0.5136986301 | I7: m3/hod | J7: =(H7/3600)*1000 -> 0.1426940639 | K7: lit/sek | N7: 2,0 <Q <=5,0 | O7: 265 | P7: (+) 2,68 Euro za každé % prekročenia | X7: 17.02.2014 | Y7: 6.49 | AA7: 6.55
C8: Prietok | D8: 0.3044 | E8: lit/sek | F8: =(D8*3600)/1000 -> 1.09584 | G8: m3/hod | H8: =F8*24 -> 26.30016 | I8: m3/deň | J8: =H8*F3 -> 9599.5584 | K8: m3/rok | N8: 5,0 <Q <=10,0 | O8: 664 | P8: (+) 6,64 Euro za každé % prekročenia | X8: 24.02.2014 | Y8: 10.6 | AA8: 10.9
N9: 10,0 <Q | O9: 1328 | P9: (+) 13,28 Euro za každé % prekročenia | X9: 03.03.2014 | Y9: 15.1 | AA9: 15.5
B10: Ukazovateľ znečistenia | C10: Koncentračný limit | E10: Bilančný limit | X10: 10.03.2014 | Y10: 27.2 | AA10: 13
C11: Priemerný (mg/l) | D11: Max. (mg/l) | E11: kg/deň | F11: ton/rok | N11: Prietok OV, zistené za rok (l/s) | O11: Sadzba za prekročenie koncentračného limitu (Euro) | P11: Sadzba za ďalšie % prekročenia koncentračnéholimitu ( Euro) | X11: 17.03.2014 | Y11: 9.33 | AA11: 10
B12: BSK5 | C12: 400 | D12: 750 | E12: =C12*$F$7*(1/1000) -> 4.931506849 | F12: =C12*$D$7*(1/1000000) -> 1.8 | N12: Q <=0,2 | O12: 20 | P12: (+) 0,33Euro za každé % prekročenia | X12: 24.03.2014 | Y12: 15.3 | AA12: 15.5
B13: CHSK | C13: 300 | D13: 600 | E13: =C13*$F$7*(1/1000) -> 3.698630137 | F13: =C13*$D$7*(1/1000000) -> 1.35 | N13: 0,2 <Q <=0,5 | O13: 40 | P13: (+) 0,83Euro za každé % prekročenia | X13: 02.04.2014 | Y13: 19.7 | AA13: 22.6
B14: Nerozpustené látky | C14: 100 | D14: 150 | E14: 1.232876712 | F14: 0.45 | N14: 0,5 <Q <=1,0 | O14: 65 | P14: (+) 3,33 Euro za každé % prekročenia | X14: 09.04.2014 | Y14: 37.7 | AA14: 29.7
B15: RL | C15: 600 | D15: 900 | E15: 7.397260274 | F15: 2.7 | N15: 1,0 <Q <=2,0 | O15: 100 | P15: (+) 3,33 Euro za každé % prekročenia | X15: 14.04.2014 | Y15: 14 | AA15: 14.3
B16: Extrahovateľné látky | C16: 40 | D16: 55 | E16: 0.4931506849 | F16: 0.18 | N16: 2,0 <Q <=5,0 | O16: 165 | P16: (+) 3,33 Euro za každé % prekročenia | X16: 21.04.2014 | Y16: 10.2 | AA16: 10
B17: PAL- A | C17: 7 | D17: 10 | E17: 0.08630136986 | F17: 0.0315 | N17: 5,0 <Q <=10,0 | O17: 330 | P17: (+) 6,66 Euro za každé % prekročenia | X17: 28.04.2014 | Y17: 10.5 | AA17: 7.7
N18: 10,0 <Q | O18: 500 | P18: (+) 11,66 Euro za každé % prekročenia | X18: 05.05.2014 | Y18: 19.8 | AA18: 21.3
B19: Výpočet prekročenia bilančných limitov vykoná dodávateľ | X19: 14.05.2014 | Y19: 22.9 | AA19: 25.8
X20: 19.05.2014 | Y20: 24.6 | AA20: 25.8
X21: 27.05.2014 | Y21: 16.8 | AA21: 18.3
X22: 02.06.2014 | Y22: 22.8 | AA22: 28
X23: 11.06.2014 | Y23: 12.7 | AA23: 14.7
X24: 18.06.2014 | Y24: 7.57 | AA24: 7.5
X25: 23.06.2014 | Y25: 10.8 | AA25: 11.6
B26: Bilančný limit | X26: 02.07.2014 | Y26: 7 | AA26: 8.8
B27: Vlož Bilančný limit pre sledovaný ukazovateľ | E27: 1.8 | F27: ton/rok | X27: 07.07.2014 | Y27: 14.5 | AA27: 12.2
X28: 14.07.2014 | Y28: 13.9 | AA28: 15
B29: Namerané dáta | X29: 21.07.2014 | Y29: 8.09 | AA29: 10.9
B30: Ukazovateľ | C30: BSK5 | X30: 28.07.2014 | Y30: 9.79 | AA30: 12.6
B31: Priemerná koncentrácia | C31: 1500 | D31: mg/l | E31: priemerná ročná koncentrácia | X31: 05.08.2014 | Y31: 8.26 | AA31: 9.1
B32: Množstvo OV | C32: 4500 | D32: m3/rok | E32: za rok | F32: =C32/F3 -> 12.32876712 | G32: m3/deň | H32: =F32/24 -> 0.5136986301 | I32: m3/hod | J32: =(H32/3600)*1000 -> 0.1426940639 | K32: lit/sek | X32: 12.08.2014 | Y32: 5.14 | AA32: 6
X33: 19.08.2014 | Y33: 11.2 | AA33: 13.4
B34: Ročná bilancia | C34: =(C31*C32)*(1/1000000) -> 6.75 | D34: ton/rok | X34: 25.08.2014 | Y34: 13.1 | AA34: 18.1
X35: 03.09.2014 | Y35: 21.7 | AA35: 24.2
B36: Výpočet úhrady za prekročenie bilančného limitu | E36: =IF($C$34<E27,"Nepočí ta sa úhrada za prekročenie bilančného limitu","Počíta sa úhrada za prekročenie bilančného limitu") -> Počíta sa úhrada za prekročenie bilančného limitu | X36: 09.09.2014 | Y36: 26.1 | AA36: 29.7
X37: 15.09.2014 | Y37: 19.1 | AA37: 21.8
B38: Prekročenie bilančného limitu | E38: =IF(C34>E27,ABS(C34-E27), " ") -> 4.95 | F38: ton/rok
B39: Percento prekročenia bilančného limitu | E39: =(100*E38)/E27 -> 275 | F39: % | X39: 23.09.2014 | Y39: 17.2 | AA39: 22.3
X40: 29.09.2014 | Y40: 25.1 | AA40: 29.7
B42: Prietok | C42: 0.14 | D42: l/s | X42: 08.10.2014 | Y42: 10.9 | AA42: 12
B43: Sadzba za prekročenie bilančného limitu (Euro) | C43: 53 | D43: údaj z tabuľky | X43: 15.10.2014 | Y43: 16.3 | AA43: 18.9
B44: Sadzba za ďalšie (začaté)% prekročenia bilančného limitu ( Euro) | C44: 2.68 | D44: údaj z tabuľky | X44: 22.10.2014 | Y44: 22.3 | AA44: 27.5
X45: 27.10.2014 | Y45: 8.84 | AA45: 9.5
B46: Úhrada za prekročenie bilančného limiitu | E46: =$C$43+($C$44*$E$39) -> 790 | X46: 03.11.2014 | Y46: 20.9
X47: 11.11.2014 | Y47: 15.3
X48: 17.11.2014 | Y48: 12
B50: BVS
B51: Dáta zo zmluvy
B52: Ukazovateľ | C52: bsk5
B53: Bilančný limit | C53: 1.8 | D53: t/rok | E53: limit
B55: Dáta za kalendárny rok
B56: Ukazovateľ | C56: bsk5
B57: Nameraná koncentrácia | C57: 1500 | D57: mg/l | E57: =C57*C58*(1/1000000) -> 6.75 | F57: ton/rok
B58: Množstvo OV | C58: 4500 | D58: m3/rok | E58: =C58/F3 -> 12.32876712 | F58: m3/deň | G58: =E58/24 -> 0.5136986301 | H58: m3/hod | I58: =(G58/3600)*1000 -> 0.1426940639 | J58: lit/sek
B60: Prekročenie bilančný limit | C60: =(E57-C53) -> 4.95 | D60: t/rok | E60: =(100*C60)/C53 -> 275 | F60: %
B62: Koeficient ako % | C62: 0.08 | D62: na základe prietoku zo zmluvy
B63: Stočné | C63: 0.9216 | D63: Euro/m3
B64: Počet dní prekročenia | C64: 365
B66: Úhrada koncentrácia | C66: =C62*E58*C62*E60*C64 -> 7920 | E66: ZVS má rovnaký spôsob výpočtu úhrady za zvýšený koncentračný limit

Sheet Hotel Junior (hidden)
B1: BVS | AA1: 9.53
N2: Prietok OV, zistené za rok (l/s) | O2: Sadzba za prekročenie bilančného limitu (Euro) | P2: Sadzba za ďalšie % prekročenia bilančného limitu ( Euro) | AA2: 7.65
B3: Počet pracovných dní v týždni | D3: 5 | E3: v roku | F3: 365 | N3: Q <=0,2 | O3: 53 | P3: (+) 2,68 Euro za každé % prekročenia | AA3: 6.9
N4: 0,2 <Q <=0,5 | O4: 106 | P4: (+) 2,68 Euro za každé % prekročenia | AA4: 12.1
B5: Odberateľ môže do verejnej kanalizácie vypúšťať odpadové vody v nasledujúcom maximálnom množstve: | N5: 0,5 <Q <=1,0 | O5: 159 | P5: (+) 2,68 Euro za každé % prekročenia | AA5: 14
D6: zmluva | N6: 1,0 <Q <=2,0 | O6: 212 | P6: (+) 2,68 Euro za každé % prekročenia | AA6: 9.25
B7: a) komunálne OV | C7: Prietok | D7: 8640 | E7: m3/rok | F7: =D7/F3 -> 23.67123288 | G7: m3/deň | H7: =F7/24 -> 0.9863013699 | I7: m3/hod | J7: =(H7/3600)*1000 -> 0.2739726027 | K7: lit/sek | N7: 2,0 <Q <=5,0 | O7: 265 | P7: (+) 2,68 Euro za každé % prekročenia | AA7: 6.55
C8: Prietok | D8: 0.274 | E8: lit/sek | F8: =(D8*3600)/1000 -> 0.9864 | G8: m3/hod | H8: =F8*24 -> 23.6736 | I8: m3/deň | J8: =H8*F3 -> 8640.864 | K8: m3/rok | N8: 5,0 <Q <=10,0 | O8: 664 | P8: (+) 6,64 Euro za každé % prekročenia | AA8: 10.9
N9: 10,0 <Q | O9: 1328 | P9: (+) 13,28 Euro za každé % prekročenia | AA9: 15.5
B10: Ukazovateľ znečistenia | C10: Koncentračný limit | E10: Bilančný limit | AA10: 13
C11: Priemerný (mg/l) | D11: Max. (mg/l) | E11: kg/deň | F11: ton/rok | N11: Prietok OV, zistené za rok (l/s) | O11: Sadzba za prekročenie koncentračného limitu (Euro) | P11: Sadzba za ďalšie % prekročenia koncentračnéholimitu ( Euro) | AA11: 10
B12: BSK5 | C12: 375 | D12: 750 | E12: =C12*$F$7*(1/1000) -> 8.876712329 | F12: =C12*$D$7*(1/1000000) -> 3.24 | N12: Q <=0,2 | O12: 20 | P12: (+) 0,33Euro za každé % prekročenia | AA12: 15.5
B13: CHSK | C13: 300 | D13: 600 | E13: =C13*$F$7*(1/1000) -> 7.101369863 | F13: =C13*$D$7*(1/1000000) -> 2.592 | N13: 0,2 <Q <=0,5 | O13: 40 | P13: (+) 0,83Euro za každé % prekročenia | AA13: 22.6
B14: Nerozpustené látky | C14: 100 | D14: 150 | E14: 2.367123288 | F14: 0.864 | N14: 0,5 <Q <=1,0 | O14: 65 | P14: (+) 3,33 Euro za každé % prekročenia | AA14: 29.7
B15: RL | C15: 600 | D15: 900 | E15: 14.20273973 | F15: 5.184 | N15: 1,0 <Q <=2,0 | O15: 100 | P15: (+) 3,33 Euro za každé % prekročenia | AA15: 14.3
B16: Extrahovateľné látky | C16: 40 | D16: 55 | E16: 0.9468493151 | F16: 0.3456 | N16: 2,0 <Q <=5,0 | O16: 165 | P16: (+) 3,33 Euro za každé % prekročenia | AA16: 10
B17: PAL- A | C17: 7 | D17: 10 | E17: 0.1656986301 | F17: 0.06048 | N17: 5,0 <Q <=10,0 | O17: 330 | P17: (+) 6,66 Euro za každé % prekročenia | AA17: 7.7
N18: 10,0 <Q | O18: 500 | P18: (+) 11,66 Euro za každé % prekročenia | AA18: 21.3
B19: Výpočet prekročenia bilančných limitov vykoná dodávateľ | AA19: 25.8
AA20: 25.8
AA21: 18.3
AA22: 28
AA23: 14.7
AA24: 7.5
AA25: 11.6
B26: Bilančný limit | AA26: 8.8
B27: Vlož Bilančný limit pre sledovaný ukazovateľ | E27: 3.24 | F27: ton/rok | AA27: 12.2
AA28: 15
B29: Namerané dáta | AA29: 10.9
B30: Ukazovateľ | C30: BSK5 | AA30: 12.6
B31: Priemerná koncentrácia | C31: 466 | D31: mg/l | E31: priemerná ročná koncentrácia | AA31: 9.1
B32: Množstvo OV | C32: 8640 | D32: m3/rok | E32: za rok | F32: =C32/F3 -> 23.67123288 | G32: m3/deň | H32: =F32/24 -> 0.9863013699 | I32: m3/hod | J32: =(H32/3600)*1000 -> 0.2739726027 | K32: lit/sek | AA32: 6
AA33: 13.4
B34: Ročná bilancia | C34: =(C31*C32)*(1/1000000) -> 4.02624 | D34: ton/rok | AA34: 18.1
AA35: 24.2
B36: Výpočet úhrady za prekročenie bilančného limitu | E36: =IF($C$34<E27,"Nepočí ta sa úhrada za prekročenie bilančného limitu","Počíta sa úhrada za prekročenie bilančného limitu") -> Počíta sa úhrada za prekročenie bilančného limitu | AA36: 29.7
AA37: 21.8
B38: Prekročenie bilančného limitu | E38: =IF(C34>E27,ABS(C34-E27), " ") -> 0.78624 | F38: ton/rok
B39: Percento prekročenia bilančného limitu | E39: =(100*E38)/E27 -> 24.26666667 | F39: % | AA39: 22.3
AA40: 29.7
B42: Prietok | C42: 0.268 | D42: l/s | AA42: 12
B43: Sadzba za prekročenie bilančného limitu (Euro) | C43: 106 | D43: údaj z tabuľky | AA43: 18.9
B44: Sadzba za ďalšie (začaté)% prekročenia bilančného limitu ( Euro) | C44: 2.68 | D44: údaj z tabuľky | AA44: 27.5
AA45: 9.5
B46: Úhrada za prekročenie bilančného limiitu | E46: =$C$43+($C$44*$E$39) -> 171.0346667
B50: BVS
B51: Dáta zo zmluvy
B52: Ukazovateľ | C52: bsk5
B53: Bilančný limit | C53: 3.24 | D53: t/rok | E53: limit
B55: Dáta za kalendárny rok
B56: Ukazovateľ | C56: bsk5
B57: Nameraná koncentrácia | C57: 466 | D57: mg/l | E57: =C57*C58*(1/1000000) -> 4.02624 | F57: ton/rok
B58: Množstvo OV | C58: 8640 | D58: m3/rok | E58: =C58/F3 -> 23.67123288 | F58: m3/deň | G58: =E58/24 -> 0.9863013699 | H58: m3/hod | I58: =(G58/3600)*1000 -> 0.2739726027 | J58: lit/sek
B60: Prekročenie bilančný limit | C60: =(E57-C53) -> 0.78624 | D60: t/rok | E60: =(100*C60)/C53 -> 24.26666667 | F60: %
B62: Koeficient ako % | C62: 0.08 | D62: na základe prietoku zo zmluvy
B63: Stočné | C63: 0.9216 | D63: Euro/m3
B64: Počet dní prekročenia | C64: 365
B66: Úhrada koncentrácia | C66: =C62*E58*C62*E60*C64 -> 1341.8496

Sheet BEZ (hidden)
B1: BVS | AA1: 9.53
N2: Prietok OV, zistené za rok (l/s) | O2: Sadzba za prekročenie bilančného limitu (Euro) | P2: Sadzba za ďalšie % prekročenia bilančného limitu ( Euro) | AA2: 7.65
B3: Počet pracovných dní v týždni | D3: 5 | E3: v roku | F3: 260 | N3: Q <=0,2 | O3: 53 | P3: (+) 2,68 Euro za každé % prekročenia | AA3: 6.9
N4: 0,2 <Q <=0,5 | O4: 106 | P4: (+) 2,68 Euro za každé % prekročenia | AA4: 12.1
B5: Odberateľ môže do verejnej kanalizácie vypúšťať odpadové vody v nasledujúcom maximálnom množstve: | N5: 0,5 <Q <=1,0 | O5: 159 | P5: (+) 2,68 Euro za každé % prekročenia | AA5: 14
D6: zmluva | N6: 1,0 <Q <=2,0 | O6: 212 | P6: (+) 2,68 Euro za každé % prekročenia | AA6: 9.25
B7: a) komunálne OV | C7: Prietok | D7: 44400 | E7: m3/rok | F7: =D7/F3 -> 170.7692308 | G7: m3/deň | H7: =F7/24 -> 7.115384615 | I7: m3/hod | J7: =(H7/3600)*1000 -> 1.976495726 | K7: lit/sek | N7: 2,0 <Q <=5,0 | O7: 265 | P7: (+) 2,68 Euro za každé % prekročenia | AA7: 6.55
C8: Prietok | D8: 1.9765 | E8: lit/sek | F8: =(D8*3600)/1000 -> 7.1154 | G8: m3/hod | H8: =F8*24 -> 170.7696 | I8: m3/deň | J8: =H8*F3 -> 44400.096 | K8: m3/rok | N8: 5,0 <Q <=10,0 | O8: 664 | P8: (+) 6,64 Euro za každé % prekročenia | AA8: 10.9
N9: 10,0 <Q | O9: 1328 | P9: (+) 13,28 Euro za každé % prekročenia | AA9: 15.5
B10: Ukazovateľ znečistenia | C10: Koncentračný limit | E10: Bilančný limit | AA10: 13
C11: Priemerný (mg/l) | D11: Max. (mg/l) | E11: kg/deň | F11: ton/rok | N11: Prietok OV, zistené za rok (l/s) | O11: Sadzba za prekročenie koncentračného limitu (Euro) | P11: Sadzba za ďalšie % prekročenia koncentračnéholimitu ( Euro) | AA11: 10
B12: BSK5 | C12: 375 | D12: 750 | E12: =C12*$F$7*(1/1000) -> 64.03846154 | F12: =C12*$D$7*(1/1000000) -> 16.65 | N12: Q <=0,2 | O12: 20 | P12: (+) 0,33Euro za každé % prekročenia | AA12: 15.5
B13: CHSK | C13: 300 | D13: 600 | E13: =C13*$F$7*(1/1000) -> 51.23076923 | F13: =C13*$D$7*(1/1000000) -> 13.32 | N13: 0,2 <Q <=0,5 | O13: 40 | P13: (+) 0,83Euro za každé % prekročenia | AA13: 22.6
B14: Nerozpustené látky | C14: 100 | D14: 150 | E14: 17.07692308 | F14: 4.44 | N14: 0,5 <Q <=1,0 | O14: 65 | P14: (+) 3,33 Euro za každé % prekročenia | AA14: 29.7
B15: RL | C15: 600 | D15: 900 | E15: 102.4615385 | F15: 26.64 | N15: 1,0 <Q <=2,0 | O15: 100 | P15: (+) 3,33 Euro za každé % prekročenia | AA15: 14.3
B16: Extrahovateľné látky | C16: 40 | D16: 55 | E16: 6.830769231 | F16: 1.776 | N16: 2,0 <Q <=5,0 | O16: 165 | P16: (+) 3,33 Euro za každé % prekročenia | AA16: 10
B17: PAL- A | C17: 7 | D17: 10 | E17: 1.195384615 | F17: 0.3108 | N17: 5,0 <Q <=10,0 | O17: 330 | P17: (+) 6,66 Euro za každé % prekročenia | AA17: 7.7
N18: 10,0 <Q | O18: 500 | P18: (+) 11,66 Euro za každé % prekročenia | AA18: 21.3
B19: Výpočet prekročenia bilančných limitov vykoná dodávateľ | AA19: 25.8
AA20: 25.8
AA21: 18.3
AA22: 28
AA23: 14.7
AA24: 7.5
AA25: 11.6
B26: Bilančný limit | AA26: 8.8
B27: Vlož Bilančný limit pre sledovaný ukazovateľ | E27: 16.65 | F27: ton/rok | AA27: 12.2
AA28: 15
B29: Namerané dáta | AA29: 10.9
B30: Ukazovateľ | C30: BSK5 | AA30: 12.6
B31: Priemerná koncentrácia | C31: 74.7 | D31: mg/l | E31: priemerná ročná koncentrácia | AA31: 9.1
B32: Množstvo OV | C32: 44400 | D32: m3/rok | E32: za rok | F32: =C32/F3 -> 170.7692308 | G32: m3/deň | H32: =F32/24 -> 7.115384615 | I32: m3/hod | J32: =(H32/3600)*1000 -> 1.976495726 | K32: lit/sek | AA32: 6
AA33: 13.4
B34: Ročná bilancia | C34: =(C31*C32)*(1/1000000) -> 3.31668 | D34: ton/rok | AA34: 18.1
AA35: 24.2
B36: Výpočet úhrady za prekročenie bilančného limitu | E36: =IF($C$34<E27,"Nepočí ta sa úhrada za prekročenie bilančného limitu","Počíta sa úhrada za prekročenie bilančného limitu") -> Nepočí ta sa úhrada za prekročenie bilančného limitu | AA36: 29.7
AA37: 21.8
B38: Prekročenie bilančného limitu | E38: =IF(C34>E27,ABS(C34-E27), " ") ->  | F38: ton/rok
B39: Percento prekročenia bilančného limitu | E39: =(100*E38)/E27 ->  | F39: % | AA39: 22.3
AA40: 29.7
B42: Prietok | C42: 1.975 | D42: l/s | AA42: 12
B43: Sadzba za prekročenie bilančného limitu (Euro) | C43: 212 | D43: údaj z tabuľky | AA43: 18.9
B44: Sadzba za ďalšie (začaté)% prekročenia bilančného limitu ( Euro) | C44: 2.68 | D44: údaj z tabuľky | AA44: 27.5
AA45: 9.5
B46: Úhrada za prekročenie bilančného limiitu | E46: =$C$43+($C$44*$E$39) -> 
B50: BVS
B51: Dáta zo zmluvy
B52: Ukazovateľ | C52: bsk5
B53: Bilančný limit | C53: 16.65 | D53: t/rok | E53: limit
B55: Dáta za kalendárny rok
B56: Ukazovateľ | C56: bsk5
B57: Nameraná koncentrácia | C57: 376 | D57: mg/l | E57: =C57*C58*(1/1000000) -> 16.6944 | F57: ton/rok
B58: Množstvo OV | C58: 44400 | D58: m3/rok | E58: =C58/F3 -> 170.7692308 | F58: m3/deň | G58: =E58/24 -> 7.115384615 | H58: m3/hod | I58: =(G58/3600)*1000 -> 1.976495726 | J58: lit/sek
B60: Prekročenie bilančný limit | C60: =(E57-C53) -> 0.0444 | D60: t/rok | E60: =(100*C60)/C53 -> 0.2666666667 | F60: %
B62: Koeficient ako % | C62: 0.08 | D62: na základe prietoku zo zmluvy
B63: Stočné | C63: 0.9216 | D63: Euro/m3
B64: Počet dní prekročenia | C64: 260
B66: Úhrada koncentrácia | C66: =C62*E58*C62*E60*C64 -> 75.776
